Organisation name,Organisation Code,Directorate,Service Category label,Service Category code,Supplier name,Payment date,Transaction number,Net Amount,Purpose of spend,Procurement classification
Southend-on-Sea Borough Council,http://opendatacommunities.org/id/unitary-authority/southend,ED Environment & Place,Planning & Economy Services,5641,Paypal,01/02/2024,12061160,212.75,Wreath making workshop for ABSS candidates 12.12.23,Florists (5992)
Southend-on-Sea Borough Council,http://opendatacommunities.org/id/unitary-authority/southend,ED Adults & Communities,Cultural And Related Services,4261,Primark 433,01/02/2024,12061160,24,Lightring purchased to use for promotion of events.,Family Clothing Stores (5651)
Southend-on-Sea Borough Council,http://opendatacommunities.org/id/unitary-authority/southend,ED Children & Public Health,Children And Education Services,3030,Lidl Gb Southend,01/02/2024,12061160,2.38,Resources for Family Centre sessions,Grocery Stores/Supermarkets (5411)
Southend-on-Sea Borough Council,http://opendatacommunities.org/id/unitary-authority/southend,ED Environment & Place,Highways And Transport Services,5021,Essex Wildlife Sales L,01/02/2024,12061160,65.25,Light refreshments for Belfairs Workshop - please code C11147.,Amusement/Rec Serv - Def (7999)
Southend-on-Sea Borough Council,http://opendatacommunities.org/id/unitary-authority/southend,ED Adults & Communities,Adult Social Care,1231,Travelodge Gb0000,01/02/2024,12061160,190.99,Hotel booked for siblings feeing Domestic abuse 3 nights stay for a place of safety,Travelodge (3615)
Southend-on-Sea Borough Council,http://opendatacommunities.org/id/unitary-authority/southend,ED Children & Public Health,Children And Education Services,3436,Parentpay E-Com R,01/02/2024,12061160,200,Payment for Examination Resits for YP - pre-approved by REDACTED PERSONAL DATA (Service Manager) in advance o *,Colleges/Univ/Jc/Profession (8220)
Southend-on-Sea Borough Council,http://opendatacommunities.org/id/unitary-authority/southend,ED Adults & Communities,Central Services to the Public,1025,Bkg*hotel At Booking.C,01/02/2024,12061160,75.91,SR attending Social work conference Birmingham 22/23 Feb,Travel Agencies (4722)
Southend-on-Sea Borough Council,http://opendatacommunities.org/id/unitary-authority/southend,ED Environment & Place,Environmental And Regulatory Services,4505,Amazon* 205-4461123-59,01/02/2024,12061160,3.5,after our refurb we needed a new waiting room sign,Misc Gen Merchandise - Def (5399)
Southend-on-Sea Borough Council,http://opendatacommunities.org/id/unitary-authority/southend,ED Environment & Place,Environmental And Regulatory Services,4505,Amznmktplace,01/02/2024,12061160,13.74,new no smoking signs,Misc Speciality Retail (5999)
Southend-on-Sea Borough Council,http://opendatacommunities.org/id/unitary-authority/southend,ED Children & Public Health,Children And Education Services,3223,Asda Superstore,01/02/2024,12061160,9,REFRESHMENTS PURCHASED FOR ASYE INDUCTION,Grocery Stores/Supermarkets (5411)
Southend-on-Sea Borough Council,http://opendatacommunities.org/id/unitary-authority/southend,ED Children & Public Health,Children And Education Services,3396,Kfc Greyhound Southend,01/02/2024,12061160,6.99,Refreshment/lunch for CIN yp during intervention,Fast Food Restaurants (5814)
Southend-on-Sea Borough Council,http://opendatacommunities.org/id/unitary-authority/southend,ED Children & Public Health,Children And Education Services,3396,Timpson Ltd,01/02/2024,12061160,12.99,Passport size photos for LAC child to be able to open bank account and apply for provisional driving *,Misc Speciality Retail (5999)
Southend-on-Sea Borough Council,http://opendatacommunities.org/id/unitary-authority/southend,ED Strategy & Change,Central Services to the Public,2014,Sainsburys S/mkts,01/02/2024,12061160,13.75,Civic Hospitality - Civic Reception Porters Civic House,Grocery Stores/Supermarkets (5411)
Southend-on-Sea Borough Council,http://opendatacommunities.org/id/unitary-authority/southend,ED Strategy & Change,Central Services to the Public,2014,Sainsburys S/mkts,01/02/2024,12061160,43,Civic Hospitality - Civic Reception Porters Civic House,Grocery Stores/Supermarkets (5411)
Southend-on-Sea Borough Council,http://opendatacommunities.org/id/unitary-authority/southend,ED Children & Public Health,Children And Education Services,3265,Facebk Gukr924tk2,01/02/2024,12061160,400,Targeted paid Facebook and Instagram advertising to raise awareness and drive prospective foster car *,Advertising Services (7311)
Southend-on-Sea Borough Council,http://opendatacommunities.org/id/unitary-authority/southend,ED Adults & Communities,Adult Social Care,1209,Amznmktplace,01/02/2024,12061160,27,"Kenco Smooth Instant Coffee Refill 150g (Pack of 6, Total 900g) for Unit 8",Misc Speciality Retail (5999)
Southend-on-Sea Borough Council,http://opendatacommunities.org/id/unitary-authority/southend,ED Strategy & Change,Central Services to the Public,7145,Amznmktplace,01/02/2024,12061160,12.48,Stationery - Mayors Office,Misc Speciality Retail (5999)
Southend-on-Sea Borough Council,http://opendatacommunities.org/id/unitary-authority/southend,ED Environment & Place,Environmental And Regulatory Services,4505,Amznmktplace,01/02/2024,12061160,49.4,new light bulbs for the south and west chapels,Misc Speciality Retail (5999)
Southend-on-Sea Borough Council,http://opendatacommunities.org/id/unitary-authority/southend,ED Adults & Communities,Cultural And Related Services,4225,Wix.Com 1097415749,01/02/2024,12061160,10.5,Wix - Halloween Parade monthly website fees.,Digital Goods - Applications (Excludes Games) (5817)
Southend-on-Sea Borough Council,http://opendatacommunities.org/id/unitary-authority/southend,ED Adults & Communities,Cultural And Related Services,4120,Amazon* 026-2047300-66,01/02/2024,12061160,47.99,Safety boots as part of uniform.,Misc Gen Merchandise - Def (5399)
Southend-on-Sea Borough Council,http://opendatacommunities.org/id/unitary-authority/southend,ED Strategy & Change,Central Services to the Public,7145,Amznmktplace,01/02/2024,12061160,55.49,Lectern for Porters Civic House,Misc Speciality Retail (5999)
Southend-on-Sea Borough Council,http://opendatacommunities.org/id/unitary-authority/southend,ED Environment & Place,Cultural And Related Services,7515,Sjaak Van Der Vijver B,01/02/2024,12061160,63.48,Flowers for the floristry orders.,Florist Supplies/Nursery Stock (5193)
Southend-on-Sea Borough Council,http://opendatacommunities.org/id/unitary-authority/southend,ED Finance & Resources,Central Services to the Public,7535,Formara Ltd,01/02/2024,12061160,356.4,Printing of foam boards for the Marine Parade Consultation C11183,Misc Publishing & Printing (2741)
Southend-on-Sea Borough Council,http://opendatacommunities.org/id/unitary-authority/southend,ED Children & Public Health,Children And Education Services,3105,Lyreco UK Limited,01/02/2024,12061160,14.54,10 x display folders and 1 pack of dot stickers,Stationery Stores (5943)
Southend-on-Sea Borough Council,http://opendatacommunities.org/id/unitary-authority/southend,ED Children & Public Health,Children And Education Services,3105,Total Merchandise,01/02/2024,12061160,330.67,1000 custom badges (inc delivery and set up costs),Misc Gen Merchandise - Def (5399)
Southend-on-Sea Borough Council,http://opendatacommunities.org/id/unitary-authority/southend,ED Children & Public Health,Children And Education Services,3030,Lidl Gb Southend,01/02/2024,12061160,10.93,Resources for Family Centre sessions,Grocery Stores/Supermarkets (5411)
Southend-on-Sea Borough Council,http://opendatacommunities.org/id/unitary-authority/southend,ED Children & Public Health,Public Health,7677,Sainsburys S/Mkts,01/02/2024,12061160,23.45,Snacks for weight management programme,Grocery Stores/Supermarkets (5411)
Southend-on-Sea Borough Council,http://opendatacommunities.org/id/unitary-authority/southend,ED Children & Public Health,Public Health,7677,Sainsburys S/Mkts,01/02/2024,12061160,0.3,Snacks for weight management programme,Grocery Stores/Supermarkets (5411)
Southend-on-Sea Borough Council,http://opendatacommunities.org/id/unitary-authority/southend,ED Children & Public Health,Children And Education Services,3030,Amznmktplace,01/02/2024,12061160,23.86,milk bulk buy friars family centre,Misc Speciality Retail (5999)
Southend-on-Sea Borough Council,http://opendatacommunities.org/id/unitary-authority/southend,ED Finance & Resources,Central Services to the Public,7140,C.E.F. (Southend),01/02/2024,12061160,26.4,Twin plug sockets for the electrical stock,Lumber/Build. Supply Stores (5211)
Southend-on-Sea Borough Council,http://opendatacommunities.org/id/unitary-authority/southend,ED Children & Public Health,Children And Education Services,3471,Lidl Gb,01/02/2024,12061160,64.6,food supplies for SYC cafe and youth work,Grocery Stores/Supermarkets (5411)
Southend-on-Sea Borough Council,http://opendatacommunities.org/id/unitary-authority/southend,ED Children & Public Health,Children And Education Services,3471,Lidl Gb,01/02/2024,12061160,2.7,food supplies for SYC cafe and youth work,Grocery Stores/Supermarkets (5411)
Southend-on-Sea Borough Council,http://opendatacommunities.org/id/unitary-authority/southend,ED Children & Public Health,Children And Education Services,3471,Booker Ltd - 38577234,01/02/2024,12061160,66.5,food and drink supplies for SYC cafe and youth work,Grocery Stores/Supermarkets (5411)
Southend-on-Sea Borough Council,http://opendatacommunities.org/id/unitary-authority/southend,ED Children & Public Health,Children And Education Services,3471,Booker Ltd - 38577234,01/02/2024,12061160,120.3,food and drink supplies for SYC cafe and youth work,Grocery Stores/Supermarkets (5411)
Southend-on-Sea Borough Council,http://opendatacommunities.org/id/unitary-authority/southend,ED Children & Public Health,Children And Education Services,3491,Sq *kunda House,01/02/2024,12061160,-100,Credit Voucher Sq *kunda House,Real Estate Agents And Managers (6513)
Southend-on-Sea Borough Council,http://opendatacommunities.org/id/unitary-authority/southend,ED Children & Public Health,Children And Education Services,3396,Southend On Sea Boroug,01/02/2024,12061160,2.4,Parking with YP to complete direct work in the community,"Parking Lots, Meters, Garages (7523)"
Southend-on-Sea Borough Council,http://opendatacommunities.org/id/unitary-authority/southend,ED Strategy & Change,Central Services to the Public,7145,Amznmktplace,01/02/2024,12061160,18.89,Candles for Porters Civic House,Misc Speciality Retail (5999)
Southend-on-Sea Borough Council,http://opendatacommunities.org/id/unitary-authority/southend,ED Environment & Place,Planning & Economy Services,5615,Networking Essex,01/02/2024,12061160,600,EXPO stand / SEC councils EXPO in march...sponsorship,Business Services - Default (7399)
Southend-on-Sea Borough Council,http://opendatacommunities.org/id/unitary-authority/southend,ED Children & Public Health,Children And Education Services,3030,Tesco Pfs 3236,01/02/2024,12061160,7.8,Snacks for family centres,Service Stations (5541)
Southend-on-Sea Borough Council,http://opendatacommunities.org/id/unitary-authority/southend,ED Environment & Place,Highways And Transport Services,5021,Amazon* 204-7487243-49,01/02/2024,12061160,260.48,Spirit levels for engineers - please code to general rev code - 5021.,Misc Gen Merchandise - Def (5399)
Southend-on-Sea Borough Council,http://opendatacommunities.org/id/unitary-authority/southend,ED Finance & Resources,Central Services to the Public,7096,Amazon* 204-2199941-54,01/02/2024,12061160,10.28,1 pack of 500 sheets of q-connect yellow A4 paper 80gsm,Misc Gen Merchandise - Def (5399)
Southend-on-Sea Borough Council,http://opendatacommunities.org/id/unitary-authority/southend,ED Finance & Resources,Central Services to the Public,7140,Amazon* 204-0376527-59,01/02/2024,12061160,20.83,replacement HDMI cable for civic 1 stock,Misc Gen Merchandise - Def (5399)
Southend-on-Sea Borough Council,http://opendatacommunities.org/id/unitary-authority/southend,ED Children & Public Health,Children And Education Services,3030,Amazon* Friar031,01/02/2024,12061160,29.48,bulk toilet rolls friars family centre,Misc Gen Merchandise - Def (5399)
Southend-on-Sea Borough Council,http://opendatacommunities.org/id/unitary-authority/southend,ED Children & Public Health,Children And Education Services,3446,Heart Of England Nhs,01/02/2024,12061160,39,solihull parenting course purchase to complete with family for intervention.,Med/Health Services - Def (8099)
Southend-on-Sea Borough Council,http://opendatacommunities.org/id/unitary-authority/southend,ED Children & Public Health,Children And Education Services,3290,Rectory Lane West,01/02/2024,12061160,7.5,Parking- training and development,"Parking Lots, Meters, Garages (7523)"
Southend-on-Sea Borough Council,http://opendatacommunities.org/id/unitary-authority/southend,ED Adults & Communities,Cultural And Related Services,4115,Sportsdirect.Com,01/02/2024,12061160,15.99,Wellies for mud work -,Sporting Goods Stores (5941)
Southend-on-Sea Borough Council,http://opendatacommunities.org/id/unitary-authority/southend,ED Adults & Communities,Cultural And Related Services,4120,Edf Energy-Cust F,01/02/2024,12061160,292.8,O/S metering service invoice for Pier head,Utilities/Elec/Gas/H2O/Sani (4900)
Southend-on-Sea Borough Council,http://opendatacommunities.org/id/unitary-authority/southend,ED Adults & Communities,Cultural And Related Services,4261,Paypal,01/02/2024,12061160,38.97,Books that can't be supplied by regular supplier,Misc Publishing & Printing (2741)
Southend-on-Sea Borough Council,http://opendatacommunities.org/id/unitary-authority/southend,ED Strategy & Change,Central Services to the Public,2015,Amazon* 205-7224721-87,01/02/2024,12061160,66.28,Printer Cartridge for Councillor,Misc Gen Merchandise - Def (5399)
Southend-on-Sea Borough Council,http://opendatacommunities.org/id/unitary-authority/southend,ED Children & Public Health,Children And Education Services,3471,Amznmktplace,01/02/2024,12061160,22.98,Fidget spinners set to encourage calmer play at Woodgrange Youth group sessions.,Misc Speciality Retail (5999)
Southend-on-Sea Borough Council,http://opendatacommunities.org/id/unitary-authority/southend,ED Children & Public Health,Children And Education Services,3030,Wm Morrisons Store,01/02/2024,12061160,9.98,snack resources for family centres,Grocery Stores/Supermarkets (5411)
Southend-on-Sea Borough Council,http://opendatacommunities.org/id/unitary-authority/southend,ED Adults & Communities,Adult Social Care,1350,Amznmktplace,01/02/2024,12061160,12.48,Essential ICT equipment purchased to enable staff to remote work,Misc Speciality Retail (5999)
Southend-on-Sea Borough Council,http://opendatacommunities.org/id/unitary-authority/southend,ED Finance & Resources,Central Services to the Public,7096,Amazon* 204-5834193-85,01/02/2024,12061160,25.41,3 packs of 100 sheets of fellows apex laminating pouches,Misc Gen Merchandise - Def (5399)
Southend-on-Sea Borough Council,http://opendatacommunities.org/id/unitary-authority/southend,ED Finance & Resources,Central Services to the Public,7140,Amazon* 204-2692512-92,01/02/2024,12061160,192.86,replacement security door handle for civic 2,Misc Gen Merchandise - Def (5399)
Southend-on-Sea Borough Council,http://opendatacommunities.org/id/unitary-authority/southend,ED Adults & Communities,Cultural And Related Services,4120,Amazon* 204-4483512-24,01/02/2024,12061160,17.98,For use on the Pier,Misc Gen Merchandise - Def (5399)
Southend-on-Sea Borough Council,http://opendatacommunities.org/id/unitary-authority/southend,ED Strategy & Change,Central Services to the Public,7130,Amazon* 203-5244230-31,01/02/2024,12061160,28.96,ID badge holders purchased to replenish stock.,Misc Gen Merchandise - Def (5399)
Southend-on-Sea Borough Council,http://opendatacommunities.org/id/unitary-authority/southend,ED Strategy & Change,Central Services to the Public,2014,Sainsburys S/mkts,01/02/2024,12061160,71.75,Civic Hospitality - Civic Reception Porters Civic House,Grocery Stores/Supermarkets (5411)
Southend-on-Sea Borough Council,http://opendatacommunities.org/id/unitary-authority/southend,ED Strategy & Change,Central Services to the Public,7145,Stalbridge Linen S,01/02/2024,12061160,122.74,Laundry Services - Porters Civic House,Dry Cleaners (7216)
Southend-on-Sea Borough Council,http://opendatacommunities.org/id/unitary-authority/southend,ED Strategy & Change,Central Services to the Public,2045,Facebk *dw6dqy7pp2,01/02/2024,12061160,15.17,Various FB campaigns,Advertising Services (7311)
Southend-on-Sea Borough Council,http://opendatacommunities.org/id/unitary-authority/southend,ED Children & Public Health,Children And Education Services,3265,Amazon.Co.Uk,01/02/2024,12061160,2625,35 e-vouchers for Foster Carers which should have been sent at Xmas time.,Other Direct Marketers (5969)
Southend-on-Sea Borough Council,http://opendatacommunities.org/id/unitary-authority/southend,ED Children & Public Health,Children And Education Services,3436,Aldi 57 776,01/02/2024,12061160,13.27,ingredients purchased with a YP for cooking project as part of Referral Order plans,Grocery Stores/Supermarkets (5411)
Southend-on-Sea Borough Council,http://opendatacommunities.org/id/unitary-authority/southend,ED Children & Public Health,Children And Education Services,3030,Asda Superstore,01/02/2024,12061160,2.26,Snacks for family centres,Grocery Stores/Supermarkets (5411)
Southend-on-Sea Borough Council,http://opendatacommunities.org/id/unitary-authority/southend,ED Environment & Place,Environmental And Regulatory Services,4505,Amazon* 205-4178363-67,01/02/2024,12061160,4.62,ethernet cables for the crematorium,Misc Gen Merchandise - Def (5399)
Southend-on-Sea Borough Council,http://opendatacommunities.org/id/unitary-authority/southend,ED Environment & Place,Housing Services,6011,Poundland Ltd - 1760,01/02/2024,12061160,11,Food for client being supported in B&B/hotel placementVAT number 547-5122-45 very hard to read on r *,Discount Stores (5310)
Southend-on-Sea Borough Council,http://opendatacommunities.org/id/unitary-authority/southend,ED Children & Public Health,Children And Education Services,3471,Essex Supplies (UK) Lt,01/02/2024,12061160,31.2,blue roll for SYC,Specialty Cleaning/Polishing (2842)
Southend-on-Sea Borough Council,http://opendatacommunities.org/id/unitary-authority/southend,ED Children & Public Health,Children And Education Services,3992,Domino S Pizza,01/02/2024,12061160,44.48,"Youth Voice participation event with children in care, managed by Youth Voice team REDACTED PERSONAL DATA",Eating Places/Restaurants (5812)
Southend-on-Sea Borough Council,http://opendatacommunities.org/id/unitary-authority/southend,Department of the Chief Executive,Cultural And Related Services,7111,Sp Synapsys-Estore,01/02/2024,12061160,115.21,Barons Court - External Lighting Dali Power Supply,Computer Software Stores (5734)
Southend-on-Sea Borough Council,http://opendatacommunities.org/id/unitary-authority/southend,Department of the Chief Executive,Cultural And Related Services,7111,Anylamp,01/02/2024,12061160,178.44,Forum - 10No 15W LED PL-T 840 Lamps,Home Supply Warehouse Stores (5200)
Southend-on-Sea Borough Council,http://opendatacommunities.org/id/unitary-authority/southend,ED Environment & Place,Cultural And Related Services,7520,Www.Screwfix.Com,01/02/2024,12061160,97.12,Blue rolls for stores,Lumber/Build. Supply Stores (5211)
Southend-on-Sea Borough Council,http://opendatacommunities.org/id/unitary-authority/southend,ED Strategy & Change,Children And Education Services,3201,Adobe.Com,01/02/2024,12061160,28.3,E-learning authoring tool for L&D team,Digital Goods - Applications (Excludes Games) (5817)
Southend-on-Sea Borough Council,http://opendatacommunities.org/id/unitary-authority/southend,ED Children & Public Health,Public Health,7678,Facebk Adk8fwtl72,01/02/2024,12061160,67.08,Social Media Advertising for Healthy Schools Programme,Advertising Services (7311)
Southend-on-Sea Borough Council,http://opendatacommunities.org/id/unitary-authority/southend,ED Strategy & Change,Central Services to the Public,7130,Amznmktplace,01/02/2024,12061160,78.98,Jabra Bluetooth conference speaker requested by TC (Service Desk Manager) for the new Chief Exec,Misc Speciality Retail (5999)
Southend-on-Sea Borough Council,http://opendatacommunities.org/id/unitary-authority/southend,ED Environment & Place,Highways And Transport Services,5021,Aru The Central Chelmsfor,01/02/2024,12061160,18.7,Tea and coffee at ARU for Catchment to Coast meeting - please code to C11147.,Eating Places/Restaurants (5812)
Southend-on-Sea Borough Council,http://opendatacommunities.org/id/unitary-authority/southend,ED Finance & Resources,Central Services to the Public,7110,Rs Components,01/02/2024,12061160,61.08,These are replacement valves for the pressure drop test panel for the Diesel Engines to the sprinkle *,Electrical Parts/Equipment (5065)
Southend-on-Sea Borough Council,http://opendatacommunities.org/id/unitary-authority/southend,ED Children & Public Health,Children And Education Services,3265,Google Ads2830285278,01/02/2024,12061160,152.89,Paid search advertising (google PPC) to drive prospective foster carer enquiries,Advertising Services (7311)
Southend-on-Sea Borough Council,http://opendatacommunities.org/id/unitary-authority/southend,ED Finance & Resources,Central Services to the Public,7110,Wetsuitoutlet.Co.Uk,01/02/2024,12061160,299.95,PPE,Sporting Goods Stores (5941)
Southend-on-Sea Borough Council,http://opendatacommunities.org/id/unitary-authority/southend,ED Adults & Communities,Cultural And Related Services,4055,Sainsburys S/mkts,01/02/2024,12061160,1.09,milk and sugar for the gallery.,Grocery Stores/Supermarkets (5411)
Southend-on-Sea Borough Council,http://opendatacommunities.org/id/unitary-authority/southend,ED Adults & Communities,Cultural And Related Services,4055,Sainsburys S/mkts,01/02/2024,12061160,3.9,milk and sugar for the gallery.,Grocery Stores/Supermarkets (5411)
Southend-on-Sea Borough Council,http://opendatacommunities.org/id/unitary-authority/southend,ED Adults & Communities,Cultural And Related Services,4055,Www.Solopress.Com,01/02/2024,12061160,89.97,Print for S for Southend postcard and the spring flyer.,Misc Publishing & Printing (2741)
Southend-on-Sea Borough Council,http://opendatacommunities.org/id/unitary-authority/southend,ED Children & Public Health,Children And Education Services,3030,Amznmktplace,01/02/2024,12061160,19.98,stationery signing in book friars,Misc Speciality Retail (5999)
Southend-on-Sea Borough Council,http://opendatacommunities.org/id/unitary-authority/southend,ED Children & Public Health,Children And Education Services,3030,Amazon.Co.Uk,01/02/2024,12061160,169.99,Ring door bell purchased for homebased family support client,Other Direct Marketers (5969)
Southend-on-Sea Borough Council,http://opendatacommunities.org/id/unitary-authority/southend,ED Finance & Resources,Central Services to the Public,7140,Dulux Decorator Centre,01/02/2024,12061160,256.85,Paint required for kitchen and East/West meeting rooms in the civic building,Paint (5198)
Southend-on-Sea Borough Council,http://opendatacommunities.org/id/unitary-authority/southend,ED Finance & Resources,Central Services to the Public,7160,Trainline,01/02/2024,12061160,89.69,KS - Billericay to Tottenham Court RoadZS - Southend Victoria to Tottenham Court RoadRICS APC brie *,Passenger Railways (4112)
Southend-on-Sea Borough Council,http://opendatacommunities.org/id/unitary-authority/southend,ED Environment & Place,Central Services to the Public,7540,Essex Bearings,01/02/2024,12061160,95.52,This purchase is supply machine bearings to the mower repair workshop,Metal Service Centers (5051)
Southend-on-Sea Borough Council,http://opendatacommunities.org/id/unitary-authority/southend,ED Environment & Place,Central Services to the Public,7540,Https Www Redstoneuk Com,01/02/2024,12061160,103.8,This purchase is to supply inner tubes to the mower repair workshop,Automotive Tire Stores (5532)
Southend-on-Sea Borough Council,http://opendatacommunities.org/id/unitary-authority/southend,ED Finance & Resources,Central Services to the Public,2070,Seven Hotel,01/02/2024,12061160,45.3,RT accomm 29-01-24 - 02-02-24,Lodging/Hotels/Motels/Resorts (7011)
Southend-on-Sea Borough Council,http://opendatacommunities.org/id/unitary-authority/southend,ED Adults & Communities,Cultural And Related Services,4015,Joe Cool,01/02/2024,12061160,474.41,Products for museum shops,Gift/Card/Novelty And Souvenir Stores (5947)
Southend-on-Sea Borough Council,http://opendatacommunities.org/id/unitary-authority/southend,ED Children & Public Health,Children And Education Services,3265,Amazon.Co.Uk,01/02/2024,12061160,450,Amazon Gift e-vouchers for Foster Carers,Other Direct Marketers (5969)
Southend-on-Sea Borough Council,http://opendatacommunities.org/id/unitary-authority/southend,ED Children & Public Health,Children And Education Services,3265,Amazon* 026-0824143-23,01/02/2024,12061160,900,Amazon Gift e-vouchers for Foster Carers,Misc Gen Merchandise - Def (5399)
Southend-on-Sea Borough Council,http://opendatacommunities.org/id/unitary-authority/southend,ED Children & Public Health,Children And Education Services,3265,Amazon.Co.Uk,01/02/2024,12061160,975,Amazon Gift e-vouchers for Foster Carers,Other Direct Marketers (5969)
Southend-on-Sea Borough Council,http://opendatacommunities.org/id/unitary-authority/southend,ED Children & Public Health,Children And Education Services,3471,Amazon* 204-4382540-54,01/02/2024,12061160,4.2,pong pong balls for use at Woodgrange youth group.,Misc Gen Merchandise - Def (5399)
Southend-on-Sea Borough Council,http://opendatacommunities.org/id/unitary-authority/southend,ED Children & Public Health,Public Health,7713,Amznmktplace,02/02/2024,12061160,71.93,"Equipment purchase for the Childrens, Young People and Families Pubic Health Service",Misc Speciality Retail (5999)
Southend-on-Sea Borough Council,http://opendatacommunities.org/id/unitary-authority/southend,ED Environment & Place,Environmental And Regulatory Services,4505,Amazon* 205-2885242-46,31/01/2024,12061160,17.84,wifi range extender for the crematorium,Misc Gen Merchandise - Def (5399)
Southend-on-Sea Borough Council,http://opendatacommunities.org/id/unitary-authority/southend,ED Children & Public Health,Children And Education Services,3396,Primark 433,01/02/2024,12061160,24,"Trousers x 2 for SG, approved by Service Manager under CIN payments.",Family Clothing Stores (5651)
Southend-on-Sea Borough Council,http://opendatacommunities.org/id/unitary-authority/southend,ED Adults & Communities,Cultural And Related Services,4225,Prosis,02/02/2024,12061160,99.93,Sliding letters for new signpost selfie spot at the end of Southend Pier.,Misc Publishing & Printing (2741)
Southend-on-Sea Borough Council,http://opendatacommunities.org/id/unitary-authority/southend,ED Children & Public Health,Children And Education Services,3491,Leigh Skip Hire Uk,02/02/2024,12061160,220,Skip hire to support family,Utilities/Elec/Gas/H2O/Sani (4900)
Southend-on-Sea Borough Council,http://opendatacommunities.org/id/unitary-authority/southend,Department of the Chief Executive,Cultural And Related Services,7111,Thomson Reuters UK Ltd,02/02/2024,12061160,105.6,JCT on demand MW2016 contract for Project 1823,Professional Services - Def (8999)
Southend-on-Sea Borough Council,http://opendatacommunities.org/id/unitary-authority/southend,Department of the Chief Executive,Cultural And Related Services,7111,Thomson Reuters UK Ltd,02/02/2024,12061160,105.6,JCT on demand contract MW2016 contract for project 1821,Professional Services - Def (8999)
Southend-on-Sea Borough Council,http://opendatacommunities.org/id/unitary-authority/southend,ED Children & Public Health,Children And Education Services,3105,Normans,02/02/2024,12061160,13.5,1 mouthpiece for a Trumpet,Record Shops (5735)
Southend-on-Sea Borough Council,http://opendatacommunities.org/id/unitary-authority/southend,ED Children & Public Health,Children And Education Services,3030,Asda Superstore,02/02/2024,12061160,22.78,Resources for Family Centre sessions,Grocery Stores/Supermarkets (5411)
Southend-on-Sea Borough Council,http://opendatacommunities.org/id/unitary-authority/southend,ED Children & Public Health,Children And Education Services,3445,School Uniform Direct,02/02/2024,12061160,37.5, of school blazer to allow a student to return to school with correct uniform.,Uniforms & Commercial Clothing (5137)
Southend-on-Sea Borough Council,http://opendatacommunities.org/id/unitary-authority/southend,ED Adults & Communities,Cultural And Related Services,4120,Poundland Ltd - 1138,02/02/2024,12061160,3,Replacement folder for truck check sheet paperwork (original folder worn & falling apart).,Discount Stores (5310)
Southend-on-Sea Borough Council,http://opendatacommunities.org/id/unitary-authority/southend,ED Adults & Communities,Cultural And Related Services,4055,Jacksonsart.Com Lock : 3.,02/02/2024,12061160,25.61,Materials sent to artist for prep for Creative Open Day at end of Feb.,Paint (5198)
Southend-on-Sea Borough Council,http://opendatacommunities.org/id/unitary-authority/southend,ED Environment & Place,Environmental And Regulatory Services,4505,Amazon* 205-8016353-06,02/02/2024,12061160,30.32,ethernet connection box for the crematorium,Misc Gen Merchandise - Def (5399)
Southend-on-Sea Borough Council,http://opendatacommunities.org/id/unitary-authority/southend,ED Children & Public Health,Children And Education Services,3030,Freedom Programme Limited,02/02/2024,12061160,287.5,Freedom books,Schools - Default (8299)
Southend-on-Sea Borough Council,http://opendatacommunities.org/id/unitary-authority/southend,ED Finance & Resources,Central Services to the Public,2190,Studio 2000 Photog,02/02/2024,12061160,233,photos for our Citizens,Camera & Photo Supply Store (5946)
Southend-on-Sea Borough Council,http://opendatacommunities.org/id/unitary-authority/southend,ED Adults & Communities,Cultural And Related Services,4115,Amazon* 03022024rs,02/02/2024,12061160,165.16,Perspex sheets for noticeboard repairs.,Misc Gen Merchandise - Def (5399)
Southend-on-Sea Borough Council,http://opendatacommunities.org/id/unitary-authority/southend,ED Children & Public Health,Children And Education Services,3492,Arriva Kent Thameside Lim,02/02/2024,12061160,9.7,Ticket for family,Bus Lines/Charter/Tour (4131)
Southend-on-Sea Borough Council,http://opendatacommunities.org/id/unitary-authority/southend,ED Adults & Communities,Cultural And Related Services,4015,Mailchimp,02/02/2024,12061160,35.74,Mailchimp for museum newsletter,Digital Goods - Large Digital Goods Merchant (5818)
Southend-on-Sea Borough Council,http://opendatacommunities.org/id/unitary-authority/southend,ED Children & Public Health,Children And Education Services,3492,Https://Islington.Civi,03/02/2024,12061160,175,Training,Govt Serv - Default (9399)
Southend-on-Sea Borough Council,http://opendatacommunities.org/id/unitary-authority/southend,ED Children & Public Health,Public Health,7713,Amznmktplace,03/02/2024,12061160,13.57,"Equipment purchase for the Children, Young People and Families Public Health Service",Misc Speciality Retail (5999)
Southend-on-Sea Borough Council,http://opendatacommunities.org/id/unitary-authority/southend,ED Children & Public Health,Children And Education Services,3030,Amazon.Co.Uk,04/02/2024,12061160,224.99,Bunk bed ordered for homebased family support case,Other Direct Marketers (5969)
Southend-on-Sea Borough Council,http://opendatacommunities.org/id/unitary-authority/southend,ED Children & Public Health,Children And Education Services,3992,Amznmktplace,04/02/2024,12061160,3.98," items of stationary to support CiCC - youth participation activities, for REDACTED PERSONAL DATA",Misc Speciality Retail (5999)
Southend-on-Sea Borough Council,http://opendatacommunities.org/id/unitary-authority/southend,ED Children & Public Health,Children And Education Services,3992,Amznmktplace,04/02/2024,12061160,21.56," items to support CiCC - youth participation activities, for REDACTED PERSONAL DATA",Misc Speciality Retail (5999)
Southend-on-Sea Borough Council,http://opendatacommunities.org/id/unitary-authority/southend,ED Children & Public Health,Children And Education Services,3992,Amznmktplace,04/02/2024,12061160,21.56," items to support CiCC - youth participation activities, for REDACTED PERSONAL DATA",Misc Speciality Retail (5999)
Southend-on-Sea Borough Council,http://opendatacommunities.org/id/unitary-authority/southend,ED Children & Public Health,Children And Education Services,3030,Amazon* Friar033,02/02/2024,12061160,5.95,first aid supplies friars,Misc Gen Merchandise - Def (5399)
Southend-on-Sea Borough Council,http://opendatacommunities.org/id/unitary-authority/southend,ED Adults & Communities,Cultural And Related Services,4115,Amazon* 02022024rs,02/02/2024,12061160,13.55,Colour dots for Blue flag BWQ information,Misc Gen Merchandise - Def (5399)
Southend-on-Sea Borough Council,http://opendatacommunities.org/id/unitary-authority/southend,ED Adults & Communities,Cultural And Related Services,4120,Amazon* 204-3720703-69,03/02/2024,12061160,41.12,For use on the Pier,Misc Gen Merchandise - Def (5399)
Southend-on-Sea Borough Council,http://opendatacommunities.org/id/unitary-authority/southend,ED Children & Public Health,Children And Education Services,3030,Lidl Gb Southend,05/02/2024,12061160,7.74,Resources for Family Centre sessions,Grocery Stores/Supermarkets (5411)
Southend-on-Sea Borough Council,http://opendatacommunities.org/id/unitary-authority/southend,ED Children & Public Health,Children And Education Services,3030,Asda Superstore,05/02/2024,12061160,6.89,Resources for Family Centre sessions,Grocery Stores/Supermarkets (5411)
Southend-on-Sea Borough Council,http://opendatacommunities.org/id/unitary-authority/southend,ED Children & Public Health,Children And Education Services,3030,Asda Superstore,05/02/2024,12061160,11.75,Resources for Family Centre sessions,Grocery Stores/Supermarkets (5411)
Southend-on-Sea Borough Council,http://opendatacommunities.org/id/unitary-authority/southend,ED Children & Public Health,Children And Education Services,3030,Asda Superstore,05/02/2024,12061160,1.7,snacks for family centres,Grocery Stores/Supermarkets (5411)
Southend-on-Sea Borough Council,http://opendatacommunities.org/id/unitary-authority/southend,ED Children & Public Health,Children And Education Services,3030,Asda Superstore,05/02/2024,12061160,5.74,snacks for family centres,Grocery Stores/Supermarkets (5411)
Southend-on-Sea Borough Council,http://opendatacommunities.org/id/unitary-authority/southend,ED Adults & Communities,Cultural And Related Services,4055,Southend Timber,05/02/2024,12061160,149.65,Timber for install of Principal Boy,Lumber/Build. Supply Stores (5211)
Southend-on-Sea Borough Council,http://opendatacommunities.org/id/unitary-authority/southend,ED Children & Public Health,Children And Education Services,3030,Amazon* Crfc021,05/02/2024,12061160,9.99,2nd class stamps cambridge road family centre,Misc Gen Merchandise - Def (5399)
Southend-on-Sea Borough Council,http://opendatacommunities.org/id/unitary-authority/southend,ED Environment & Place,Housing Services,6011,Greggs,05/02/2024,12061160,2.85,"sustenance for rough sleeping client, had to go back to store to get a receipt as they could not pro *",Eating Places/Restaurants (5812)
Southend-on-Sea Borough Council,http://opendatacommunities.org/id/unitary-authority/southend,ED Children & Public Health,Children And Education Services,3290,Trainline,05/02/2024,12061160,131.89,"Train ticket to see young person - direct work, stat visit, agreed by REDACTED PERSONAL DATA TM.",Passenger Railways (4112)
Southend-on-Sea Borough Council,http://opendatacommunities.org/id/unitary-authority/southend,ED Children & Public Health,Children And Education Services,3471,Lidl Gb,05/02/2024,12061160,19.2,food supplies for SYC cafe and youth work,Grocery Stores/Supermarkets (5411)
Southend-on-Sea Borough Council,http://opendatacommunities.org/id/unitary-authority/southend,Department of the Chief Executive,Cultural And Related Services,7111,Handy Labels,05/02/2024,12061160,795.69,Leisure Centres - Asset labels for asset tagging & condition survey,Misc Publishing & Printing (2741)
Southend-on-Sea Borough Council,http://opendatacommunities.org/id/unitary-authority/southend,ED Children & Public Health,Central Services to the Public,1035,"Posit Software, Pbc",05/02/2024,12061160,284.91,SmartSouthend Shiny apps for 02/24,Computer Program/Sys Design (7372)
Southend-on-Sea Borough Council,http://opendatacommunities.org/id/unitary-authority/southend,ED Children & Public Health,Public Health,7713,Amznmktplace,05/02/2024,12061160,15.96,"Equipment purchase for the Children, Young People and Families Public Health Service",Misc Speciality Retail (5999)
Southend-on-Sea Borough Council,http://opendatacommunities.org/id/unitary-authority/southend,ED Children & Public Health,Public Health,7713,Amazon* 202-6426562-80,05/02/2024,12061160,41.86,"Equipment purchase for the Children, Young People and Families Public Health Service",Misc Gen Merchandise - Def (5399)
Southend-on-Sea Borough Council,http://opendatacommunities.org/id/unitary-authority/southend,ED Children & Public Health,Public Health,7713,Amazon* 202-6167974-74,05/02/2024,12061160,47.96,"Equipment purchase for the Children, Young People and Families Public Health Service",Misc Gen Merchandise - Def (5399)
Southend-on-Sea Borough Council,http://opendatacommunities.org/id/unitary-authority/southend,ED Children & Public Health,Public Health,7713,Oralhealthf,05/02/2024,12061160,218.82,"Equipment purchase for the Children's, Young People and Families Public Health Service",Charitable/Soc Service Orgs (8398)
Southend-on-Sea Borough Council,http://opendatacommunities.org/id/unitary-authority/southend,ED Children & Public Health,Children And Education Services,3265,Amazon* 026-3842914-38,05/02/2024,12061160,75,Amazon Gift e-voucher for Foster Carers,Misc Gen Merchandise - Def (5399)
Southend-on-Sea Borough Council,http://opendatacommunities.org/id/unitary-authority/southend,ED Adults & Communities,Cultural And Related Services,4120,Amazon* 204-3210116-57,03/02/2024,12061160,26.94,For use on the Pier,Misc Gen Merchandise - Def (5399)
Southend-on-Sea Borough Council,http://opendatacommunities.org/id/unitary-authority/southend,ED Adults & Communities,Cultural And Related Services,4255,Lyreco UK Limited,05/02/2024,12061160,66.79,General stationery for libraries,Stationery Stores (5943)
Southend-on-Sea Borough Council,http://opendatacommunities.org/id/unitary-authority/southend,ED Adults & Communities,Cultural And Related Services,4255,Lyreco UK Limited,05/02/2024,12061160,102.31,General stationery for libraries,Stationery Stores (5943)
Southend-on-Sea Borough Council,http://opendatacommunities.org/id/unitary-authority/southend,ED Environment & Place,Central Services to the Public,7540,Euro Car Parts P,05/02/2024,12061160,195.99,This purchase is to supply a N/S mirror unit to be fitted to the Parks vehicle.,Automotive Parts Stores (5533)
Southend-on-Sea Borough Council,http://opendatacommunities.org/id/unitary-authority/southend,ED Adults & Communities,Cultural And Related Services,4225,Paypal,06/02/2024,12061160,24,Southend Pier - new selfie spot.Large size pack of sliding letters for new photo op signpost.,Misc Publishing & Printing (2741)
Southend-on-Sea Borough Council,http://opendatacommunities.org/id/unitary-authority/southend,ED Strategy & Change,Central Services to the Public,7130,Phoenix Software,06/02/2024,12061160,60,Customer MLS Report for Microsoft Estate. In response to FOI request.,Computers/Peripherals/Software (5045)
Southend-on-Sea Borough Council,http://opendatacommunities.org/id/unitary-authority/southend,ED Children & Public Health,Children And Education Services,3290,Greater Anglia T/o,06/02/2024,12061160,126.9,Travel to Rhyl wales to see LCS ref: REDACTED PERSONAL DATA See LCS stat visit dated - 6th Feb 2024,Passenger Railways (4112)
Southend-on-Sea Borough Council,http://opendatacommunities.org/id/unitary-authority/southend,ED Children & Public Health,Children And Education Services,3030,Asda Superstore,06/02/2024,12061160,3.5,Snacks for antenatal class,Grocery Stores/Supermarkets (5411)
Southend-on-Sea Borough Council,http://opendatacommunities.org/id/unitary-authority/southend,ED Children & Public Health,Public Health,7713,The Lullaby Trust,06/02/2024,12061160,55,Training to support delivery of the CONI programme in health visiting,Civic/Social/Fraternal Assc (8641)
Southend-on-Sea Borough Council,http://opendatacommunities.org/id/unitary-authority/southend,ED Children & Public Health,Children And Education Services,3290,Rectory Lane West,06/02/2024,12061160,7.5,Training and development- Chelmsford- parking,"Parking Lots, Meters, Garages (7523)"
Southend-on-Sea Borough Council,http://opendatacommunities.org/id/unitary-authority/southend,ED Environment & Place,Cultural And Related Services,7520,Halfords 0557,06/02/2024,12061160,19.99,Drill pump for paint spillage as other one died during use,Bicycle Shops/Sales/Service (5940)
Southend-on-Sea Borough Council,http://opendatacommunities.org/id/unitary-authority/southend,ED Environment & Place,Cultural And Related Services,7520,Halfords 0557,06/02/2024,12061160,19.99,Drill pump for paint spillage,Bicycle Shops/Sales/Service (5940)
Southend-on-Sea Borough Council,http://opendatacommunities.org/id/unitary-authority/southend,ED Adults & Communities,Cultural And Related Services,4120,Amznmktplace,06/02/2024,12061160,18.48,Exit markers for Nstn layout,Misc Speciality Retail (5999)
Southend-on-Sea Borough Council,http://opendatacommunities.org/id/unitary-authority/southend,ED Adults & Communities,Cultural And Related Services,4120,Amznmktplace,06/02/2024,12061160,19.19,'No Entry' signs for new Nstn layout,Misc Speciality Retail (5999)
Southend-on-Sea Borough Council,http://opendatacommunities.org/id/unitary-authority/southend,ED Adults & Communities,Cultural And Related Services,4120,B & Q 1372,06/02/2024,12061160,25.93,Driver bits for impact driver,Home Supply Warehouse Stores (5200)
Southend-on-Sea Borough Council,http://opendatacommunities.org/id/unitary-authority/southend,ED Adults & Communities,Cultural And Related Services,4120,Amazon* 06022024rs,06/02/2024,12061160,26.68,Hex driver and adaptor set for impact driver.,Misc Gen Merchandise - Def (5399)
Southend-on-Sea Borough Council,http://opendatacommunities.org/id/unitary-authority/southend,ED Adults & Communities,Cultural And Related Services,4120,Amazon* 0602pers,06/02/2024,12061160,45.46,Directional floor arrows for Nstn layout,Misc Gen Merchandise - Def (5399)
Southend-on-Sea Borough Council,http://opendatacommunities.org/id/unitary-authority/southend,ED Adults & Communities,Cultural And Related Services,4120,Toolstation Ltd,06/02/2024,12061160,189.98,Impact driver for various applications and deck work on the Pier.,Lumber/Build. Supply Stores (5211)
Southend-on-Sea Borough Council,http://opendatacommunities.org/id/unitary-authority/southend,ED Children & Public Health,Public Health,7713,Amazon* 206-8479968-20,06/02/2024,12061160,4.62,Items required for delivery of Little Steps programme,Misc Gen Merchandise - Def (5399)
Southend-on-Sea Borough Council,http://opendatacommunities.org/id/unitary-authority/southend,ED Children & Public Health,Public Health,7677,Amazon* 206-5760054-29,06/02/2024,12061160,7.89,Stationary items to support delivery of Health4Life,Misc Gen Merchandise - Def (5399)
Southend-on-Sea Borough Council,http://opendatacommunities.org/id/unitary-authority/southend,ED Children & Public Health,Public Health,7713,Amazon* 206-0722455-22,06/02/2024,12061160,17.67,Items to support delivery of the health visiting healthy child programme,Misc Gen Merchandise - Def (5399)
Southend-on-Sea Borough Council,http://opendatacommunities.org/id/unitary-authority/southend,ED Children & Public Health,Children And Education Services,3290,Greater Anglia T/o,07/02/2024,12061160,64.6,Supported LCS ref: REDACTED PERSONAL DATA to attend asylum appeals court.Two tickets purchased on one receipt. *,Passenger Railways (4112)
Southend-on-Sea Borough Council,http://opendatacommunities.org/id/unitary-authority/southend,ED Children & Public Health,Children And Education Services,3396,Starbucks Coffee,07/02/2024,12061160,5.6,CS cold drink- CIN visit.,Fast Food Restaurants (5814)
Southend-on-Sea Borough Council,http://opendatacommunities.org/id/unitary-authority/southend,ED Children & Public Health,Children And Education Services,3396,McDonalds 16,07/02/2024,12061160,14.38,Breakfast for SG and LR- approved by manager as both girls were due in court today.,Fast Food Restaurants (5814)
Southend-on-Sea Borough Council,http://opendatacommunities.org/id/unitary-authority/southend,ED Children & Public Health,Children And Education Services,3396,McDonalds 1217,07/02/2024,12061160,6.21,food bought for GC following traumatic event,Fast Food Restaurants (5814)
Southend-on-Sea Borough Council,http://opendatacommunities.org/id/unitary-authority/southend,ED Environment & Place,Planning & Economy Services,5641,Networking Essex,07/02/2024,12061160,420,Employer engagement - networking event,Business Services - Default (7399)
Southend-on-Sea Borough Council,http://opendatacommunities.org/id/unitary-authority/southend,ED Children & Public Health,Children And Education Services,3692,Hm Passport Office,07/02/2024,12061160,53.5,Passport TH,Govt Serv - Default (9399)
Southend-on-Sea Borough Council,http://opendatacommunities.org/id/unitary-authority/southend,ED Children & Public Health,Children And Education Services,3992,Btmk.Co.Uk,07/02/2024,12061160,186.3,Statutory declaration TH,Legal Services Attorneys (8111)
Southend-on-Sea Borough Council,http://opendatacommunities.org/id/unitary-authority/southend,ED Finance & Resources,Central Services to the Public,7140,Aquaplusuk.Com,07/02/2024,12061160,180,Water bottles for water machines in the civic centre,Misc Gen Merchandise - Def (5399)
Southend-on-Sea Borough Council,http://opendatacommunities.org/id/unitary-authority/southend,ED Environment & Place,Planning & Economy Services,5641,Sq *margaret Raymond Flor,07/02/2024,12061160,240,ABSS - pathways to work flower wreath making course,Misc Gen Merchandise - Def (5399)
Southend-on-Sea Borough Council,http://opendatacommunities.org/id/unitary-authority/southend,ED Environment & Place,Central Services to the Public,7540,Ate (UK) Ltd,07/02/2024,12061160,108.54, made to supply tow & warning parts for use in the mower repair workshop.,Towing Services (7549)
Southend-on-Sea Borough Council,http://opendatacommunities.org/id/unitary-authority/southend,ED Adults & Communities,Cultural And Related Services,4120,B & Q 1372,07/02/2024,12061160,13.68,Wood screws for barrier fixings.,Home Supply Warehouse Stores (5200)
Southend-on-Sea Borough Council,http://opendatacommunities.org/id/unitary-authority/southend,ED Adults & Communities,Cultural And Related Services,4120,Toolstation Ltd,07/02/2024,12061160,17.07,Coach bolts for bench placement and fitting,Lumber/Build. Supply Stores (5211)
Southend-on-Sea Borough Council,http://opendatacommunities.org/id/unitary-authority/southend,ED Adults & Communities,Cultural And Related Services,4120,Amznmktplace,07/02/2024,12061160,22.05,Directional exit arrow signs,Misc Speciality Retail (5999)
Southend-on-Sea Borough Council,http://opendatacommunities.org/id/unitary-authority/southend,ED Adults & Communities,Cultural And Related Services,4120,Amznmktplace,07/02/2024,12061160,39.6,Wall mounted retractable queue tape,Misc Speciality Retail (5999)
Southend-on-Sea Borough Council,http://opendatacommunities.org/id/unitary-authority/southend,ED Strategy & Change,Central Services to the Public,7125,C2e880400907t Ukvi,07/02/2024,12061160,1239,Certificate of sponsorship payment to enable a worker from abroad to be employed.,Govt Serv - Default (9399)
Southend-on-Sea Borough Council,http://opendatacommunities.org/id/unitary-authority/southend,ED Adults & Communities,Public Health,1512,Maxwells,07/02/2024,12061160,59,Catering for Drug and Alcohol Workshop,Fast Food Restaurants (5814)
Southend-on-Sea Borough Council,http://opendatacommunities.org/id/unitary-authority/southend,ED Adults & Communities,Central Services to the Public,1011,Tec Services Associati,07/02/2024,12061160,426,REDACTED PERSONAL DATA will be attending the International Technology Enabled Care Conference 2024. This s *,Business Services - Default (7399)
Southend-on-Sea Borough Council,http://opendatacommunities.org/id/unitary-authority/southend,ED Children & Public Health,Children And Education Services,3030,Asda Superstore,07/02/2024,12061160,26.73,snack resources for family centres,Grocery Stores/Supermarkets (5411)
Southend-on-Sea Borough Council,http://opendatacommunities.org/id/unitary-authority/southend,ED Strategy & Change,Central Services to the Public,7130,Amznmktplace,08/02/2024,12061160,-16.83,Credit Voucher Amznmktplace. Refund of Laptop Chargers.,Misc Speciality Retail (5999)
Southend-on-Sea Borough Council,http://opendatacommunities.org/id/unitary-authority/southend,ED Strategy & Change,Central Services to the Public,7130,Amznmktplace,08/02/2024,12061160,-235.51,Credit Voucher Amznmktplace. Refund.,Misc Speciality Retail (5999)
Southend-on-Sea Borough Council,http://opendatacommunities.org/id/unitary-authority/southend,ED Children & Public Health,Public Health,7713,Amznmktplace,08/02/2024,12061160,6.98,Items to support delivery of Little Steps programme,Misc Speciality Retail (5999)
Southend-on-Sea Borough Council,http://opendatacommunities.org/id/unitary-authority/southend,ED Children & Public Health,Public Health,7713,Amznmktplace,08/02/2024,12061160,11.98,Items to support delivery of Little Steps programme,Misc Speciality Retail (5999)
Southend-on-Sea Borough Council,http://opendatacommunities.org/id/unitary-authority/southend,ED Children & Public Health,Children And Education Services,3030,Amazon* Blen038,07/02/2024,12061160,10.15,stationery blenheim family centre,Misc Gen Merchandise - Def (5399)
Southend-on-Sea Borough Council,http://opendatacommunities.org/id/unitary-authority/southend,ED Children & Public Health,Children And Education Services,3030,Amazon* Blen038,07/02/2024,12061160,34.49,cleaning supplies Blenheim,Misc Gen Merchandise - Def (5399)
Southend-on-Sea Borough Council,http://opendatacommunities.org/id/unitary-authority/southend,ED Finance & Resources,Housing Services,6167,Amazon* 203-3102778-32,07/02/2024,12061160,8.98,Stationery for office,Misc Gen Merchandise - Def (5399)
Southend-on-Sea Borough Council,http://opendatacommunities.org/id/unitary-authority/southend,ED Finance & Resources,Housing Services,6167,Amazon* 203-7553621-03,07/02/2024,12061160,14.68,Stationery for office,Misc Gen Merchandise - Def (5399)
Southend-on-Sea Borough Council,http://opendatacommunities.org/id/unitary-authority/southend,ED Finance & Resources,Central Services to the Public,7185,Amazon* 202-9349011-70,08/02/2024,12061160,6.94,USB Extended multiport for member of staff,Misc Gen Merchandise - Def (5399)
Southend-on-Sea Borough Council,http://opendatacommunities.org/id/unitary-authority/southend,ED Children & Public Health,Children And Education Services,3436,Vue*,08/02/2024,12061160,22.5,CSCS card test.YP DA,Schools - Default (8299)
Southend-on-Sea Borough Council,http://opendatacommunities.org/id/unitary-authority/southend,ED Children & Public Health,Children And Education Services,3436,Vue*,08/02/2024,12061160,22.5,CSCS card Receipt JS,Schools - Default (8299)
Southend-on-Sea Borough Council,http://opendatacommunities.org/id/unitary-authority/southend,ED Environment & Place,Highways And Transport Services,5021,Amazon* 204-6433058-50,08/02/2024,12061160,18.5,Delegate badges for CtoC Developer's Day - please code to C11147.Thank you,Misc Gen Merchandise - Def (5399)
Southend-on-Sea Borough Council,http://opendatacommunities.org/id/unitary-authority/southend,ED Adults & Communities,Adult Social Care,1231,Trainline,08/02/2024,12061160,87.39,Social Worker visit to attend placement review and legal paperwork,Passenger Railways (4112)
Southend-on-Sea Borough Council,http://opendatacommunities.org/id/unitary-authority/southend,ED Adults & Communities,Cultural And Related Services,4120,Nisbets Ltd,08/02/2024,12061160,53.98,Hygiene catering pack signage-outstanding invoice from Pavilion Restaurant when operated internally.,Catalog Merchant (5964)
Southend-on-Sea Borough Council,http://opendatacommunities.org/id/unitary-authority/southend,ED Adults & Communities,Cultural And Related Services,4120,Www.Caterkwik.Co.Uk,08/02/2024,12061160,142.73,Greasepaks for drainage in the kiosk/giftshop.,Commercial Equipment - Default (5046)
Southend-on-Sea Borough Council,http://opendatacommunities.org/id/unitary-authority/southend,ED Finance & Resources,Central Services to the Public,7140,Amazon* 204-5004385-14,08/02/2024,12061160,68.64,washing up liquid stock,Misc Gen Merchandise - Def (5399)
Southend-on-Sea Borough Council,http://opendatacommunities.org/id/unitary-authority/southend,ED Children & Public Health,Children And Education Services,3692,London Borough Of Haverin,08/02/2024,12061160,-16,Credit Voucher London Borough Of Havering RG birth certificate,Govt Serv - Default (9399)
Southend-on-Sea Borough Council,http://opendatacommunities.org/id/unitary-authority/southend,ED Children & Public Health,Children And Education Services,3492,Hm Passport Office,08/02/2024,12061160,53.5,Passport MCT,Govt Serv - Default (9399)
Southend-on-Sea Borough Council,http://opendatacommunities.org/id/unitary-authority/southend,ED Finance & Resources,Central Services to the Public,2156,Find A Will,08/02/2024,12061160,1.5,Council Tax probate search,Professional Services - Def (8999)
Southend-on-Sea Borough Council,http://opendatacommunities.org/id/unitary-authority/southend,ED Finance & Resources,Central Services to the Public,2156,Find A Will,08/02/2024,12061160,1.5,Council Tax probate search,Professional Services - Def (8999)
Southend-on-Sea Borough Council,http://opendatacommunities.org/id/unitary-authority/southend,ED Children & Public Health,Children And Education Services,3491,Parkway,08/02/2024,12061160,5.7,Parking ticket team manager court,"Parking Lots, Meters, Garages (7523)"
Southend-on-Sea Borough Council,http://opendatacommunities.org/id/unitary-authority/southend,ED Environment & Place,Environmental And Regulatory Services,4505,Amazon* 204-9788010-75,02/02/2024,12061160,316,notice board for outside the memorial chapel at the crematorium,Misc Gen Merchandise - Def (5399)
Southend-on-Sea Borough Council,http://opendatacommunities.org/id/unitary-authority/southend,ED Children & Public Health,Public Health,7720,Paypal,07/02/2024,12061160,160,Books to support delivery of healthy child programme nutrition element in partnership with A Better *,Charitable/Soc Service Orgs (8398)
Southend-on-Sea Borough Council,http://opendatacommunities.org/id/unitary-authority/southend,ED Children & Public Health,Public Health,7720,Paypal,07/02/2024,12061160,18,Books to support delivery of healthy child programme nutrition element in partnership with A Better *,Charitable/Soc Service Orgs (8398)
Southend-on-Sea Borough Council,http://opendatacommunities.org/id/unitary-authority/southend,ED Adults & Communities,Cultural And Related Services,4263,Amazon* 202-7976149-75,09/02/2024,12061160,8.48,Assorted batteries to be located at Shoeburyness Library and used by library sites at the east of th *,Misc Gen Merchandise - Def (5399)
Southend-on-Sea Borough Council,http://opendatacommunities.org/id/unitary-authority/southend,ED Adults & Communities,Cultural And Related Services,4280,Amazon* 202-5254124-86,09/02/2024,12061160,8.48,Assorted batteries to be located at Westcliff Library and used by library sites at the west of the c *,Misc Gen Merchandise - Def (5399)
Southend-on-Sea Borough Council,http://opendatacommunities.org/id/unitary-authority/southend,ED Children & Public Health,Children And Education Services,3030,Asda Superstore,09/02/2024,12061160,19.75,Resources for Family Centre sessions,Grocery Stores/Supermarkets (5411)
Southend-on-Sea Borough Council,http://opendatacommunities.org/id/unitary-authority/southend,ED Children & Public Health,Children And Education Services,3396,McDonalds 1217,09/02/2024,12061160,2.99,LOR looked after child visit. LOR breakfast.,Fast Food Restaurants (5814)
Southend-on-Sea Borough Council,http://opendatacommunities.org/id/unitary-authority/southend,ED Children & Public Health,Children And Education Services,3396,McDonalds 1217,09/02/2024,12061160,3.89,LOR looked after child visit. LOR breakfast.,Fast Food Restaurants (5814)
Southend-on-Sea Borough Council,http://opendatacommunities.org/id/unitary-authority/southend,ED Adults & Communities,Cultural And Related Services,4055,Trimble,09/02/2024,12061160,361.2,Sketch Up yearly subscription,Architectural/Eng/Survey (8911)
Southend-on-Sea Borough Council,http://opendatacommunities.org/id/unitary-authority/southend,ED Environment & Place,Housing Services,6011,Sainsburys- Westcl,09/02/2024,12061160,6.2,Food basics for REDACTED PERSONAL DATA,Grocery Stores/Supermarkets (5411)
Southend-on-Sea Borough Council,http://opendatacommunities.org/id/unitary-authority/southend,ED Finance & Resources,Central Services to the Public,7140,Amazon* 204-4001713-83,09/02/2024,12061160,33.7,drinking glasses for civic tower stock,Misc Gen Merchandise - Def (5399)
Southend-on-Sea Borough Council,http://opendatacommunities.org/id/unitary-authority/southend,ED Finance & Resources,Central Services to the Public,7140,Amazon* 204-0460015-04,09/02/2024,12061160,64.6,breakfast bowls for civic tower stock,Misc Gen Merchandise - Def (5399)
Southend-on-Sea Borough Council,http://opendatacommunities.org/id/unitary-authority/southend,ED Finance & Resources,Central Services to the Public,7140,Www.Screwfix.Com,09/02/2024,12061160,72.99,replacement boots for tech,Lumber/Build. Supply Stores (5211)
Southend-on-Sea Borough Council,http://opendatacommunities.org/id/unitary-authority/southend,ED Finance & Resources,Central Services to the Public,7140,Amazon* 204-0329562-04,09/02/2024,12061160,171.92,mugs for civic tower stock,Misc Gen Merchandise - Def (5399)
Southend-on-Sea Borough Council,http://opendatacommunities.org/id/unitary-authority/southend,ED Finance & Resources,Central Services to the Public,7140,Amazon* 204-4001713-83,09/02/2024,12061160,211.4,cork pin boards for civic tower,Misc Gen Merchandise - Def (5399)
Southend-on-Sea Borough Council,http://opendatacommunities.org/id/unitary-authority/southend,ED Adults & Communities,Cultural And Related Services,4025,B & Q 1372,09/02/2024,12061160,80,Materials for the new roman exhibition at central museum.,Home Supply Warehouse Stores (5200)
Southend-on-Sea Borough Council,http://opendatacommunities.org/id/unitary-authority/southend,ED Adults & Communities,Cultural And Related Services,4055,Jacksonsart.Com Lock : 3.,09/02/2024,12061160,26.61,Reorder for materials sent to artist for prep for creative open day (refunded for last payment),Paint (5198)
Southend-on-Sea Borough Council,http://opendatacommunities.org/id/unitary-authority/southend,ED Environment & Place,Environmental And Regulatory Services,4505,Amznmktplace,09/02/2024,12061160,316,notice board for the hall way at the cemetery lodge,Misc Speciality Retail (5999)
Southend-on-Sea Borough Council,http://opendatacommunities.org/id/unitary-authority/southend,ED Children & Public Health,Children And Education Services,3221,Anglo American Boo,09/02/2024,12061160,179.85,"Restorative practice books for RP training for PEs and Students, and CS staff",Book Stores (5942)
Southend-on-Sea Borough Council,http://opendatacommunities.org/id/unitary-authority/southend,ED Finance & Resources,Central Services to the Public,7110,Amznmktplace,09/02/2024,12061160,13.89, of key fobs for lockers on floor 6 (pilot for review prior to rollout across Civic One),Misc Speciality Retail (5999)
Southend-on-Sea Borough Council,http://opendatacommunities.org/id/unitary-authority/southend,ED Finance & Resources,Central Services to the Public,7110,Amznmktplace,09/02/2024,12061160,44.68,Wireless keyboard and mouse for use in room 6 West and stickers for locker identification on Floor 6,Misc Speciality Retail (5999)
Southend-on-Sea Borough Council,http://opendatacommunities.org/id/unitary-authority/southend,ED Adults & Communities,Cultural And Related Services,4015,Eventbrite.Com Org Fee,09/02/2024,12061160,19,Eventbrite pro plan for event publishing,Computer Software Stores (5734)
Southend-on-Sea Borough Council,http://opendatacommunities.org/id/unitary-authority/southend,ED Adults & Communities,Cultural And Related Services,4261,Amznmktplace,09/02/2024,12061160,12.94,Customer requested book,Misc Speciality Retail (5999)
Southend-on-Sea Borough Council,http://opendatacommunities.org/id/unitary-authority/southend,ED Adults & Communities,Cultural And Related Services,4120,The Range,09/02/2024,12061160,14.99,For use on the Pier,Misc Home Furnishing (5719)
Southend-on-Sea Borough Council,http://opendatacommunities.org/id/unitary-authority/southend,ED Adults & Communities,Cultural And Related Services,4055,Mailchimp,10/02/2024,12061160,105.55,Mailchimp subscription February 2024,Digital Goods - Large Digital Goods Merchant (5818)
Southend-on-Sea Borough Council,http://opendatacommunities.org/id/unitary-authority/southend,ED Finance & Resources,Housing Services,6170,Amazon* 202-9579958-83,10/02/2024,12061160,25.99,"External USB webcam for use in a criminal investigation, SCC does not possess one and this is the on *",Misc Gen Merchandise - Def (5399)
Southend-on-Sea Borough Council,http://opendatacommunities.org/id/unitary-authority/southend,ED Finance & Resources,Central Services to the Public,7140,Amazon* 204-4668651-19,09/02/2024,12061160,52.17,cutlery for tower stock,Misc Gen Merchandise - Def (5399)
Southend-on-Sea Borough Council,http://opendatacommunities.org/id/unitary-authority/southend,ED Children & Public Health,Children And Education Services,3310,Amznmktplace,12/02/2024,12061160,454.96,Digital device platforms for PEP Training and delivery.,Misc Speciality Retail (5999)
Southend-on-Sea Borough Council,http://opendatacommunities.org/id/unitary-authority/southend,ED Environment & Place,Cultural And Related Services,7515,Asda Superstore,12/02/2024,12061160,11.5,Flowers for the floristry orders.VAT number is on the reverse of the receipt on the second page of *,Grocery Stores/Supermarkets (5411)
Southend-on-Sea Borough Council,http://opendatacommunities.org/id/unitary-authority/southend,ED Children & Public Health,Children And Education Services,3030,Tesco Stores 3177,12/02/2024,12061160,5.1,Resources for Family Centre sessions,Grocery Stores/Supermarkets (5411)
Southend-on-Sea Borough Council,http://opendatacommunities.org/id/unitary-authority/southend,ED Children & Public Health,Children And Education Services,3030,Asda Superstore,12/02/2024,12061160,0.2,Snacks for family centres,Grocery Stores/Supermarkets (5411)
Southend-on-Sea Borough Council,http://opendatacommunities.org/id/unitary-authority/southend,ED Children & Public Health,Children And Education Services,3030,Asda Superstore,12/02/2024,12061160,19.66,Snacks for family centres,Grocery Stores/Supermarkets (5411)
Southend-on-Sea Borough Council,http://opendatacommunities.org/id/unitary-authority/southend,ED Environment & Place,Housing Services,6011,Air-India,12/02/2024,12061160,394.89,Ticket for REDACTED PERSONAL DATA to return to India,Air-India (3020)
Southend-on-Sea Borough Council,http://opendatacommunities.org/id/unitary-authority/southend,ED Finance & Resources,Central Services to the Public,7140,Amazon* 204-7557233-57,12/02/2024,12061160,7.39,hdmi cable joiner for stock,Misc Gen Merchandise - Def (5399)
Southend-on-Sea Borough Council,http://opendatacommunities.org/id/unitary-authority/southend,ED Adults & Communities,Cultural And Related Services,4025,The Range,12/02/2024,12061160,16.97,Materials for the new roman exhibition at central Museum.,Misc Home Furnishing (5719)
Southend-on-Sea Borough Council,http://opendatacommunities.org/id/unitary-authority/southend,ED Environment & Place,Highways And Transport Services,5235,Directnine,12/02/2024,12061160,235.95,This is for a docking for a member of staff.,Electronics Sales (5732)
Southend-on-Sea Borough Council,http://opendatacommunities.org/id/unitary-authority/southend,ED Adults & Communities,Central Services to the Public,1025,Www.Adass.Org.Uk,12/02/2024,12061160,605,"REDACTED PERSONAL DATA ADASS spring seminar April 24, 25 & 26",Member Organizations - Def (8699)
Southend-on-Sea Borough Council,http://opendatacommunities.org/id/unitary-authority/southend,ED Environment & Place,Housing Services,6011,The Fish House,12/02/2024,12061160,5.7,Lunch for client being supported in B&B,Fast Food Restaurants (5814)
Southend-on-Sea Borough Council,http://opendatacommunities.org/id/unitary-authority/southend,ED Environment & Place,Housing Services,6011,Trainline,12/02/2024,12061160,58.84,Train fare to take client to airport for return home to country of origin,Passenger Railways (4112)
Southend-on-Sea Borough Council,http://opendatacommunities.org/id/unitary-authority/southend,ED Finance & Resources,Central Services to the Public,7140,C.E.F. (Southend),12/02/2024,12061160,37.8,Batteries for the many remotes for tv's in the civic tower block and civic suite,Lumber/Build. Supply Stores (5211)
Southend-on-Sea Borough Council,http://opendatacommunities.org/id/unitary-authority/southend,ED Environment & Place,Central Services to the Public,7540,Leigh Lock And Safe Co Lt,12/02/2024,12061160,24.48,This purchase is to cut & supply keys to be used with the Parks department,Business Services - Default (7399)
Southend-on-Sea Borough Council,http://opendatacommunities.org/id/unitary-authority/southend,ED Strategy & Change,Children And Education Services,3201,Elevenlabs.Io,12/02/2024,12061160,0.82,Digital design software for L&D team,Computer Software Stores (5734)
Southend-on-Sea Borough Council,http://opendatacommunities.org/id/unitary-authority/southend,ED Adults & Communities,Cultural And Related Services,4120,The Range,12/02/2024,12061160,33.98,For use on the Pier,Misc Home Furnishing (5719)
Southend-on-Sea Borough Council,http://opendatacommunities.org/id/unitary-authority/southend,ED Adults & Communities,Cultural And Related Services,4120,Leigh-On-Sea Skip Hire,12/02/2024,12061160,320,For use on the Pier,Equip/Furn Rent/Lease Serv (7394)
Southend-on-Sea Borough Council,http://opendatacommunities.org/id/unitary-authority/southend,ED Children & Public Health,Children And Education Services,3310,Amznmktplace,13/02/2024,12061160,29.94,Stationary for Virtual School Staff.,Misc Speciality Retail (5999)
Southend-on-Sea Borough Council,http://opendatacommunities.org/id/unitary-authority/southend,ED Environment & Place,Housing Services,6011,Primark 433,12/02/2024,12061160,64,Clothing for REDACTED PERSONAL DATA to travel to home,Family Clothing Stores (5651)
Southend-on-Sea Borough Council,http://opendatacommunities.org/id/unitary-authority/southend,ED Children & Public Health,Children And Education Services,3310,Amznmktplace,13/02/2024,12061160,37.5,Harry Potter Books for BP for a reward for the progress he has made at school.,Misc Speciality Retail (5999)
Southend-on-Sea Borough Council,http://opendatacommunities.org/id/unitary-authority/southend,ED Children & Public Health,Children And Education Services,3310,Domino S Pizza,13/02/2024,12061160,55.47,Domino Pizza for NEET students attending one day First Aid Training Qualification.,Eating Places/Restaurants (5812)
Southend-on-Sea Borough Council,http://opendatacommunities.org/id/unitary-authority/southend,ED Children & Public Health,Children And Education Services,3310,Courtney Creative,13/02/2024,12061160,324.9,EvryBusiness digital platform cards.,Professional Services - Def (8999)
Southend-on-Sea Borough Council,http://opendatacommunities.org/id/unitary-authority/southend,ED Adults & Communities,Cultural And Related Services,4255,Lyreco UK Limited,13/02/2024,12061160,12.07,Stationery for library buildings,Stationery Stores (5943)
Southend-on-Sea Borough Council,http://opendatacommunities.org/id/unitary-authority/southend,ED Adults & Communities,Cultural And Related Services,4256,Euroffice.Co.Uk,13/02/2024,12061160,41.94,General stationery,Stationery Stores (5943)
Southend-on-Sea Borough Council,http://opendatacommunities.org/id/unitary-authority/southend,ED Adults & Communities,Cultural And Related Services,4290,Amazon* 202-0235579-53,13/02/2024,12061160,5.58,'Gas Mains Shut Off' sign for Leigh Library basement as requested by fire officer,Misc Gen Merchandise - Def (5399)
Southend-on-Sea Borough Council,http://opendatacommunities.org/id/unitary-authority/southend,ED Environment & Place,Environmental And Regulatory Services,4535,Ryman,13/02/2024,12061160,25.22,Stationery items required for the CCTV control room,Stationery Stores (5943)
Southend-on-Sea Borough Council,http://opendatacommunities.org/id/unitary-authority/southend,ED Environment & Place,Highways And Transport Services,5022,The Bikeability Trust,13/02/2024,12061160,168.96,Level 1 Certificate packs,Stationery/Office Supplies (5111)
Southend-on-Sea Borough Council,http://opendatacommunities.org/id/unitary-authority/southend,ED Adults & Communities,Cultural And Related Services,4015,Shell,13/02/2024,12061160,15,"Travel between museums, and pickup of materials for new roman exhibition.",Service Stations (5541)
Southend-on-Sea Borough Council,http://opendatacommunities.org/id/unitary-authority/southend,ED Children & Public Health,Children And Education Services,3030,Amazon* Crfc031,13/02/2024,12061160,3.92,first aid supplies cambridge road,Misc Gen Merchandise - Def (5399)
Southend-on-Sea Borough Council,http://opendatacommunities.org/id/unitary-authority/southend,ED Children & Public Health,Children And Education Services,3030,Amazon* Crfc031,13/02/2024,12061160,4.89,tape stationery for cambridge road,Misc Gen Merchandise - Def (5399)
Southend-on-Sea Borough Council,http://opendatacommunities.org/id/unitary-authority/southend,ED Children & Public Health,Children And Education Services,3030,Amazon* Crfc031,13/02/2024,12061160,4.99,first aid supplies cambridge road,Misc Gen Merchandise - Def (5399)
Southend-on-Sea Borough Council,http://opendatacommunities.org/id/unitary-authority/southend,ED Children & Public Health,Children And Education Services,3030,Amazon* Crfc031,13/02/2024,12061160,20.03,tape stationery for CRFC,Misc Gen Merchandise - Def (5399)
Southend-on-Sea Borough Council,http://opendatacommunities.org/id/unitary-authority/southend,ED Children & Public Health,Children And Education Services,3030,Amazon* Friar034,13/02/2024,12061160,73.27,printer cartridge emergency order Friars,Misc Gen Merchandise - Def (5399)
Southend-on-Sea Borough Council,http://opendatacommunities.org/id/unitary-authority/southend,ED Finance & Resources,Central Services to the Public,7140,St Anns Building Material,13/02/2024,12061160,50.79,Decorating equipment for painting of Kitchens and east/west meeting rooms,Lumber/Build. Supply Stores (5211)
Southend-on-Sea Borough Council,http://opendatacommunities.org/id/unitary-authority/southend,ED Children & Public Health,Children And Education Services,3290,Rectory Lane West,13/02/2024,12061160,7.5,Training and development- parking- Chelmsford,"Parking Lots, Meters, Garages (7523)"
Southend-on-Sea Borough Council,http://opendatacommunities.org/id/unitary-authority/southend,ED Children & Public Health,Children And Education Services,3471,Lidl Gb,13/02/2024,12061160,48.83,food for syc cafe and youth work,Grocery Stores/Supermarkets (5411)
Southend-on-Sea Borough Council,http://opendatacommunities.org/id/unitary-authority/southend,ED Environment & Place,Central Services to the Public,2041,Citypestcontrolgroup,13/02/2024,12061160,480,Pest control treatment for ARAP family at Fortune Steps,Disinfect/Exterminate Serv (7342)
Southend-on-Sea Borough Council,http://opendatacommunities.org/id/unitary-authority/southend,ED Children & Public Health,Children And Education Services,3491,Bkg*hotel At Booking.C,13/02/2024,12061160,60,Hotel for a parent visiting child for contact,Travel Agencies (4722)
Southend-on-Sea Borough Council,http://opendatacommunities.org/id/unitary-authority/southend,ED Children & Public Health,Children And Education Services,3030,Wm Morrisons Store,13/02/2024,12061160,22.34,snack resources for family centres,Grocery Stores/Supermarkets (5411)
Southend-on-Sea Borough Council,http://opendatacommunities.org/id/unitary-authority/southend,ED Strategy & Change,Central Services to the Public,7130,Ripencccom,12/02/2024,12061160,1316.85,RIPE contract payment for 1-1-2024 till: 31-12-2024.,Computer Network/Info Svcs (4816)
Southend-on-Sea Borough Council,http://opendatacommunities.org/id/unitary-authority/southend,ED Children & Public Health,Children And Education Services,3030,Amazon* Crfc031,13/02/2024,12061160,9.41,first aid supplies cambridge road,Misc Gen Merchandise - Def (5399)
Southend-on-Sea Borough Council,http://opendatacommunities.org/id/unitary-authority/southend,ED Strategy & Change,Central Services to the Public,7130,Phoenix Software,14/02/2024,12061160,100.8,8 x Entra ID Governance Licenses for Microsoft.,Computers/Peripherals/Software (5045)
Southend-on-Sea Borough Council,http://opendatacommunities.org/id/unitary-authority/southend,ED Environment & Place,Cultural And Related Services,7515,Estuary Wholesale Ltd,14/02/2024,12061160,26.11,Flowers for the floristry orders.,Misc Speciality Retail (5999)
Southend-on-Sea Borough Council,http://opendatacommunities.org/id/unitary-authority/southend,ED Environment & Place,Cultural And Related Services,4200,Lidl Gb Southend,14/02/2024,12061160,10.36,Food and drink and tools for volunteer group,Grocery Stores/Supermarkets (5411)
Southend-on-Sea Borough Council,http://opendatacommunities.org/id/unitary-authority/southend,ED Environment & Place,Cultural And Related Services,4200,Lidl Gb Southend,14/02/2024,12061160,64.98,Food and drink and tools for volunteer group,Grocery Stores/Supermarkets (5411)
Southend-on-Sea Borough Council,http://opendatacommunities.org/id/unitary-authority/southend,ED Adults & Communities,Cultural And Related Services,4256,Sp Bb Hygiene,14/02/2024,12061160,167.84,New waste bin on wheels (Health & Safety),Misc Speciality Retail (5999)
Southend-on-Sea Borough Council,http://opendatacommunities.org/id/unitary-authority/southend,ED Children & Public Health,Children And Education Services,3290,Greater Anglia T/o,14/02/2024,12061160,129.4,Visit to see REDACTED PERSONAL DATA - See LCS stat visit dated 16/2/2024,Passenger Railways (4112)
Southend-on-Sea Borough Council,http://opendatacommunities.org/id/unitary-authority/southend,ED Children & Public Health,Children And Education Services,3265,Facebk Sju5yzbtk2,14/02/2024,12061160,6.68,Targeted paid digital advertising to raise awareness and drive prospective foster carer enquiries,Advertising Services (7311)
Southend-on-Sea Borough Council,http://opendatacommunities.org/id/unitary-authority/southend,ED Children & Public Health,Children And Education Services,3265,Facebk Jcskj2ytk2,14/02/2024,12061160,263.79,Paid digital advertising to raise awareness and drive prospective foster carer enquiries,Advertising Services (7311)
Southend-on-Sea Borough Council,http://opendatacommunities.org/id/unitary-authority/southend,ED Environment & Place,Housing Services,6011,Gen Register Office,14/02/2024,12061160,11,Birth Certificate REDACTED PERSONAL DATA,Govt Serv - Default (9399)
Southend-on-Sea Borough Council,http://opendatacommunities.org/id/unitary-authority/southend,ED Environment & Place,Housing Services,6011,Gen Register Office,14/02/2024,12061160,11,BC for REDACTED PERSONAL DATA,Govt Serv - Default (9399)
Southend-on-Sea Borough Council,http://opendatacommunities.org/id/unitary-authority/southend,ED Children & Public Health,Children And Education Services,3396,McDonalds 396,14/02/2024,12061160,5.09,food purchased for young person cared for by LA - open to AIPT,Fast Food Restaurants (5814)
Southend-on-Sea Borough Council,http://opendatacommunities.org/id/unitary-authority/southend,ED Adults & Communities,Cultural And Related Services,4025,Dulux Decorator Centre,14/02/2024,12061160,173.38,Paint for the new roman exhibition at central Museum,Paint (5198)
Southend-on-Sea Borough Council,http://opendatacommunities.org/id/unitary-authority/southend,ED Children & Public Health,Children And Education Services,3492,Hm Passport Office,14/02/2024,12061160,53.5,Passport RH,Govt Serv - Default (9399)
Southend-on-Sea Borough Council,http://opendatacommunities.org/id/unitary-authority/southend,ED Children & Public Health,Children And Education Services,3030,Amznmktplace,14/02/2024,12061160,18.98,bulk black sacks friars,Misc Speciality Retail (5999)
Southend-on-Sea Borough Council,http://opendatacommunities.org/id/unitary-authority/southend,ED Children & Public Health,Children And Education Services,3030,Amznmktplace,14/02/2024,12061160,24.49,bulk toilet rolls summercourt,Misc Speciality Retail (5999)
Southend-on-Sea Borough Council,http://opendatacommunities.org/id/unitary-authority/southend,ED Children & Public Health,Children And Education Services,3030,Amznmktplace,14/02/2024,12061160,49.94,paper towels bulk summercourt,Misc Speciality Retail (5999)
Southend-on-Sea Borough Council,http://opendatacommunities.org/id/unitary-authority/southend,ED Children & Public Health,Children And Education Services,3030,Amazon* Prince004,14/02/2024,12061160,73.27,printer cartridge prince ave emergency order,Misc Gen Merchandise - Def (5399)
Southend-on-Sea Borough Council,http://opendatacommunities.org/id/unitary-authority/southend,ED Environment & Place,Housing Services,6011,Sainsburys S/mkts,14/02/2024,12061160,3.5,meal deal for rough sleeping client,Grocery Stores/Supermarkets (5411)
Southend-on-Sea Borough Council,http://opendatacommunities.org/id/unitary-authority/southend,ED Environment & Place,Housing Services,6011,South Essex Property Serv,14/02/2024,12061160,3.6,meal deal for rough sleeping client,Eating Places/Restaurants (5812)
Southend-on-Sea Borough Council,http://opendatacommunities.org/id/unitary-authority/southend,ED Strategy & Change,Central Services to the Public,2022,Wienerholocaustlibrary,14/02/2024,12061160,-250,Credit Voucher Wienerholocaustlibrary,Schools - Default (8299)
Southend-on-Sea Borough Council,http://opendatacommunities.org/id/unitary-authority/southend,ED Finance & Resources,Central Services to the Public,2156,Find A Will,14/02/2024,12061160,1.5,Probate Certificate for CTAX liability,Professional Services - Def (8999)
Southend-on-Sea Borough Council,http://opendatacommunities.org/id/unitary-authority/southend,ED Finance & Resources,Central Services to the Public,2156,Find A Will,14/02/2024,12061160,1.5,Probate Certificate for CTAX liability,Professional Services - Def (8999)
Southend-on-Sea Borough Council,http://opendatacommunities.org/id/unitary-authority/southend,ED Finance & Resources,Central Services to the Public,2156,Smscommify,14/02/2024,12061160,912,Text message purchase to prompt residents in arrears for CTAX.,Business Services - Default (7399)
Southend-on-Sea Borough Council,http://opendatacommunities.org/id/unitary-authority/southend,ED Adults & Communities,Cultural And Related Services,4261,Uk Point Of Sale Group Lt,14/02/2024,12061160,254.58,Book display stands ordered for multiple libraries,Stationery/Office Supplies (5111)
Southend-on-Sea Borough Council,http://opendatacommunities.org/id/unitary-authority/southend,ED Adults & Communities,Cultural And Related Services,4261,Wf Education Group Ltd,14/02/2024,12061160,510.6,Book supports purchased from normal supplier for multiple libraries,Lab/Med/Hospital Equipment (5047)
Southend-on-Sea Borough Council,http://opendatacommunities.org/id/unitary-authority/southend,ED Environment & Place,Housing Services,6011,Trainline,12/02/2024,12061160,-47.15,Credit Voucher Trainline,Passenger Railways (4112)
Southend-on-Sea Borough Council,http://opendatacommunities.org/id/unitary-authority/southend,ED Environment & Place,Cultural And Related Services,4200,Toolstation Ltd,15/02/2024,12061160,121.96,Tools and equipment for Landscape Team,Lumber/Build. Supply Stores (5211)
Southend-on-Sea Borough Council,http://opendatacommunities.org/id/unitary-authority/southend,ED Strategy & Change,Children And Education Services,3201,Clr*www.Cieh.Org,15/02/2024,12061160,180,CIEH Training Course,Member Organizations - Def (8699)
Southend-on-Sea Borough Council,http://opendatacommunities.org/id/unitary-authority/southend,ED Children & Public Health,Children And Education Services,3030,Tesco Stores 3177,15/02/2024,12061160,10.66,Snacks for family centres,Grocery Stores/Supermarkets (5411)
Southend-on-Sea Borough Council,http://opendatacommunities.org/id/unitary-authority/southend,ED Environment & Place,Planning & Economy Services,5641,Amazon* 205-9746781-46,15/02/2024,12061160,24.98,SW OHL - Home setup - keyboard and mouse,Misc Gen Merchandise - Def (5399)
Southend-on-Sea Borough Council,http://opendatacommunities.org/id/unitary-authority/southend,ED Environment & Place,Planning & Economy Services,5641,Amazon* 206-8180013-00,15/02/2024,12061160,37.98,CS EC - Home setup - keyboard and mouse,Misc Gen Merchandise - Def (5399)
Southend-on-Sea Borough Council,http://opendatacommunities.org/id/unitary-authority/southend,ED Adults & Communities,Cultural And Related Services,4055,Wsg Centrum Bar Mleczny,15/02/2024,12061160,6.65,Lunch in Warsaw,Eating Places/Restaurants (5812)
Southend-on-Sea Borough Council,http://opendatacommunities.org/id/unitary-authority/southend,ED Adults & Communities,Cultural And Related Services,4055,Pkp Intercity 33605 Kasa,15/02/2024,12061160,7.53,PKP Intercity train Warszawa to Bialystok,Transportation Svcs - Default (4789)
Southend-on-Sea Borough Council,http://opendatacommunities.org/id/unitary-authority/southend,ED Adults & Communities,Cultural And Related Services,4055,Stratford Sst,15/02/2024,12061160,15.1,Train from Stratford to Heathrow,Passenger Railways (4112)
Southend-on-Sea Borough Council,http://opendatacommunities.org/id/unitary-authority/southend,ED Adults & Communities,Cultural And Related Services,4256,Booker Ltd - 38577234,15/02/2024,12061160,103.4,Food and drink to be sold at The Forum,Grocery Stores/Supermarkets (5411)
Southend-on-Sea Borough Council,http://opendatacommunities.org/id/unitary-authority/southend,ED Adults & Communities,Adult Social Care,1350,Asda Superstore,15/02/2024,12061160,39.89,Food shop for adult.,Grocery Stores/Supermarkets (5411)
Southend-on-Sea Borough Council,http://opendatacommunities.org/id/unitary-authority/southend,ED Children & Public Health,Children And Education Services,3183,Formara Ltd,15/02/2024,12061160,82.8,Banner for Supported Internship Event for REDACTED PERSONAL DATA,Misc Publishing & Printing (2741)
Southend-on-Sea Borough Council,http://opendatacommunities.org/id/unitary-authority/southend,ED Finance & Resources,Central Services to the Public,2190,Studio 2000 Photog,15/02/2024,12061160,222.56,photos for citizenship ceremony gift to our citizens,Camera & Photo Supply Store (5946)
Southend-on-Sea Borough Council,http://opendatacommunities.org/id/unitary-authority/southend,ED Children & Public Health,Children And Education Services,3991,Wimpy Upminster,15/02/2024,12061160,17.68,Direct work with BA,Fast Food Restaurants (5814)
Southend-on-Sea Borough Council,http://opendatacommunities.org/id/unitary-authority/southend,ED Children & Public Health,Children And Education Services,3471,Amazon* 204-7178047-63,15/02/2024,12061160,13.99,Bird seed for crafts at St Cedd's youth group sessions.,Misc Gen Merchandise - Def (5399)
Southend-on-Sea Borough Council,http://opendatacommunities.org/id/unitary-authority/southend,ED Adults & Communities,Cultural And Related Services,4120,Amznbusiness,16/02/2024,12061160,9.98,For use on the pier,Misc Speciality Retail (5999)
Southend-on-Sea Borough Council,http://opendatacommunities.org/id/unitary-authority/southend,ED Environment & Place,Planning & Economy Services,5641,Amazon* 206-9325622-09,15/02/2024,12061160,26.64,CS EC - Home setup - laptop stand,Misc Gen Merchandise - Def (5399)
Southend-on-Sea Borough Council,http://opendatacommunities.org/id/unitary-authority/southend,ED Environment & Place,Planning & Economy Services,5641,Amazon* 206-0786267-89,15/02/2024,12061160,26.64,CH EC - Home setup - laptop stand,Misc Gen Merchandise - Def (5399)
Southend-on-Sea Borough Council,http://opendatacommunities.org/id/unitary-authority/southend,ED Environment & Place,Planning & Economy Services,5641,Amazon* 206-1631135-69,15/02/2024,12061160,32.99,CH EC - Home setup - keyboard and mouse,Misc Gen Merchandise - Def (5399)
Southend-on-Sea Borough Council,http://opendatacommunities.org/id/unitary-authority/southend,ED Environment & Place,Planning & Economy Services,5641,Amazon* 206-0697150-40,15/02/2024,12061160,91.39,CH EC - Home setup - monitor,Misc Gen Merchandise - Def (5399)
Southend-on-Sea Borough Council,http://opendatacommunities.org/id/unitary-authority/southend,ED Children & Public Health,Children And Education Services,3471,Amazon* 204-6155320-08,15/02/2024,12061160,16.74,Bottles of paint x 6 for use at St Cedd's youth group.,Misc Gen Merchandise - Def (5399)
Southend-on-Sea Borough Council,http://opendatacommunities.org/id/unitary-authority/southend,ED Environment & Place,Cultural And Related Services,4200,Sumup *engraving Service,16/02/2024,12061160,70,Plaques for Donated Trees,Misc Speciality Retail (5999)
Southend-on-Sea Borough Council,http://opendatacommunities.org/id/unitary-authority/southend,ED Children & Public Health,Children And Education Services,3492,C2c-Online.Co.Uk,16/02/2024,12061160,56.2,train fare for parent to travel to family time to see cared for child,Passenger Railways (4112)
Southend-on-Sea Borough Council,http://opendatacommunities.org/id/unitary-authority/southend,ED Adults & Communities,Cultural And Related Services,4256,The Works,16/02/2024,12061160,7,Colouring pencils for Shoebury Library for Anime event,Discount Stores (5310)
Southend-on-Sea Borough Council,http://opendatacommunities.org/id/unitary-authority/southend,ED Adults & Communities,Cultural And Related Services,4055,Www.Flints.Co.Uk,16/02/2024,12061160,439.48,Materials for FPG - RP notified.,Mens/Womens Clothing Stores (5691)
Southend-on-Sea Borough Council,http://opendatacommunities.org/id/unitary-authority/southend,ED Children & Public Health,Children And Education Services,3436,Nandos,16/02/2024,12061160,4.8,Food for myself and co worker whilst at Basildon Crown court for the day,Eating Places/Restaurants (5812)
Southend-on-Sea Borough Council,http://opendatacommunities.org/id/unitary-authority/southend,ED Adults & Communities,Cultural And Related Services,4055,Podlasie,16/02/2024,12061160,5.03,Bar Podlasie Lunch,Eating Places/Restaurants (5812)
Southend-on-Sea Borough Council,http://opendatacommunities.org/id/unitary-authority/southend,ED Adults & Communities,Cultural And Related Services,4025,S & A Supplies,16/02/2024,12061160,94,Paint for the new roman exhibition at central museum,Glass/Paint/Wallpaper Store (5231)
Southend-on-Sea Borough Council,http://opendatacommunities.org/id/unitary-authority/southend,ED Adults & Communities,Adult Social Care,1350,Www.Argos.Co.Uk,16/02/2024,12061160,22,Pet carrier for adult,Department Stores (5311)
Southend-on-Sea Borough Council,http://opendatacommunities.org/id/unitary-authority/southend,ED Environment & Place,Housing Services,6011,P Westcliff To,16/02/2024,12061160,81.5,Train fare to assist client in B&B to return home,Passenger Railways (4112)
Southend-on-Sea Borough Council,http://opendatacommunities.org/id/unitary-authority/southend,ED Children & Public Health,Children And Education Services,3491,Www.Argos.Co.Uk,16/02/2024,12061160,25,REDACTED PERSONAL DATA bed guard for child,Department Stores (5311)
Southend-on-Sea Borough Council,http://opendatacommunities.org/id/unitary-authority/southend,ED Children & Public Health,Children And Education Services,3491,Www.Argos.Co.Uk,16/02/2024,12061160,50,REDACTED PERSONAL DATA Stair Gates for family,Department Stores (5311)
Southend-on-Sea Borough Council,http://opendatacommunities.org/id/unitary-authority/southend,ED Finance & Resources,Housing Services,6170,Trainline,16/02/2024,12061160,28.99,Return train journey Prittlewell to London Liverpool Street to attend the Gov.net Counter Fraud Con *,Passenger Railways (4112)
Southend-on-Sea Borough Council,http://opendatacommunities.org/id/unitary-authority/southend,ED Strategy & Change,Children And Education Services,3201,"Articulate Global, Llc",16/02/2024,12061160,2297.27,2x Articulate 360 Teams,Computer Software Stores (5734)
Southend-on-Sea Borough Council,http://opendatacommunities.org/id/unitary-authority/southend,ED Adults & Communities,Cultural And Related Services,4055,Koleo Makes Trains Great,17/02/2024,12061160,7.55,Train from Bialystok to Warszawa (didn't get a receipt so train ticket attached),Passenger Railways (4112)
Southend-on-Sea Borough Council,http://opendatacommunities.org/id/unitary-authority/southend,ED Adults & Communities,Cultural And Related Services,4055,Raj Kozlowski Doroszkiewi,17/02/2024,12061160,9.36,Dinner at Raj Restaurant,Eating Places/Restaurants (5812)
Southend-on-Sea Borough Council,http://opendatacommunities.org/id/unitary-authority/southend,ED Adults & Communities,Cultural And Related Services,4055,Soodi Rest,17/02/2024,12061160,9.76,Lunch at Soodi Restaurant,Eating Places/Restaurants (5812)
Southend-on-Sea Borough Council,http://opendatacommunities.org/id/unitary-authority/southend,ED Adults & Communities,Cultural And Related Services,4055,Apple.Com/Bill,17/02/2024,12061160,12.99,Procreate for the iPads for Character design workshops as part of the anime and manga week at the li *,Digital Goods - Large Digital Goods Merchant (5818)
Southend-on-Sea Borough Council,http://opendatacommunities.org/id/unitary-authority/southend,ED Adults & Communities,Cultural And Related Services,4055,Jacksonsart.Com Fine Grai,17/02/2024,12061160,86.21,Materials for creative open day.,Paint (5198)
Southend-on-Sea Borough Council,http://opendatacommunities.org/id/unitary-authority/southend,ED Adults & Communities,Cultural And Related Services,4055,Km Coffee Sp Z O O Cof,18/02/2024,12061160,5.09,Breakfast KM Coffee,Fast Food Restaurants (5814)
Southend-on-Sea Borough Council,http://opendatacommunities.org/id/unitary-authority/southend,ED Adults & Communities,Cultural And Related Services,4055,Zapiecek Nowy Swiat,18/02/2024,12061160,12.21,Dinner at Nowy Swiat,Eating Places/Restaurants (5812)
Southend-on-Sea Borough Council,http://opendatacommunities.org/id/unitary-authority/southend,ED Children & Public Health,Children And Education Services,3471,Amazon* 204-1441072-70,18/02/2024,12061160,24.49,"Blu tak, glitter and saline eye solution for use at St Cedd's youth groups.",Misc Gen Merchandise - Def (5399)
Southend-on-Sea Borough Council,http://opendatacommunities.org/id/unitary-authority/southend,ED Children & Public Health,Children And Education Services,3471,Amazon* 204-1441072-70,18/02/2024,12061160,26.2,Medical ice packs and selloptape for use at St Cedd's youth group.,Misc Gen Merchandise - Def (5399)
Southend-on-Sea Borough Council,http://opendatacommunities.org/id/unitary-authority/southend,ED Environment & Place,Housing Services,6011,Gen Register Office,14/02/2024,12061160,-11,Credit Voucher Gen Register Office Refund on BC for REDACTED PERSONAL DATA,Govt Serv - Default (9399)
Southend-on-Sea Borough Council,http://opendatacommunities.org/id/unitary-authority/southend,ED Adults & Communities,Cultural And Related Services,4120,B & Q 1372,15/02/2024,12061160,98.36,For use on the Pier,Home Supply Warehouse Stores (5200)
Southend-on-Sea Borough Council,http://opendatacommunities.org/id/unitary-authority/southend,ED Adults & Communities,Cultural And Related Services,4015,Sp Fire And Safety C,19/02/2024,12061160,206.32,Materials for collections care work. Code to LCEP grant award 2023. The transaction has been split *,Hardware Equipment/Supplies (5072)
Southend-on-Sea Borough Council,http://opendatacommunities.org/id/unitary-authority/southend,ED Adults & Communities,Cultural And Related Services,4055,Vincent Chmielna,19/02/2024,12061160,6.88,Vincent Patisserie Breakfast,Bakeries (5462)
Southend-on-Sea Borough Council,http://opendatacommunities.org/id/unitary-authority/southend,ED Adults & Communities,Cultural And Related Services,4055,Bar Mleczny Familijny,19/02/2024,12061160,8.12,Lunch at Bar Mleczny Familijny,Eating Places/Restaurants (5812)
Southend-on-Sea Borough Council,http://opendatacommunities.org/id/unitary-authority/southend,ED Adults & Communities,Cultural And Related Services,4055,Heathrow Rail Link,19/02/2024,12061160,15.1,Train from Heathrow to Stratford,Passenger Railways (4112)
Southend-on-Sea Borough Council,http://opendatacommunities.org/id/unitary-authority/southend,ED Adults & Communities,Cultural And Related Services,4256,One For Fun Limited,19/02/2024,12061160,271.67,Retail merchandise to be sold at The Forum and branch libraiesThere is a 0.02 discrepancy between *,Hobby/Toy/Game Stores (5945)
Southend-on-Sea Borough Council,http://opendatacommunities.org/id/unitary-authority/southend,ED Children & Public Health,Children And Education Services,3692,Hm Passport Office,19/02/2024,12061160,53.5,Passport WS,Govt Serv - Default (9399)
Southend-on-Sea Borough Council,http://opendatacommunities.org/id/unitary-authority/southend,ED Children & Public Health,Children And Education Services,3692,Hm Passport Office,19/02/2024,12061160,53.5,Passport PD,Govt Serv - Default (9399)
Southend-on-Sea Borough Council,http://opendatacommunities.org/id/unitary-authority/southend,ED Environment & Place,Highways And Transport Services,5010,Bkg*hotel At Booking.C,19/02/2024,12061160,112.5,Overnight stay for the roundtable event.,Travel Agencies (4722)
Southend-on-Sea Borough Council,http://opendatacommunities.org/id/unitary-authority/southend,ED Environment & Place,Highways And Transport Services,5100,Trainline,19/02/2024,12061160,176.29,Return rail travel for RL to attend ADEPT event in Birmingham on 20th February.,Passenger Railways (4112)
Southend-on-Sea Borough Council,http://opendatacommunities.org/id/unitary-authority/southend,ED Children & Public Health,Children And Education Services,3396,Asda Superstore,19/02/2024,12061160,8,gift for YP turning 16 and closing to AIPT,Grocery Stores/Supermarkets (5411)
Southend-on-Sea Borough Council,http://opendatacommunities.org/id/unitary-authority/southend,ED Adults & Communities,Cultural And Related Services,4025,Edu-Sci Ltd,19/02/2024,12061160,59.7,Retail products for museum shop,Pet Stores/Food & Supply (5995)
Southend-on-Sea Borough Council,http://opendatacommunities.org/id/unitary-authority/southend,ED Adults & Communities,Cultural And Related Services,4025,Edu-Sci Ltd,19/02/2024,12061160,209.27,Retail products for museum shop,Pet Stores/Food & Supply (5995)
Southend-on-Sea Borough Council,http://opendatacommunities.org/id/unitary-authority/southend,ED Adults & Communities,Cultural And Related Services,4120,Amznmktplace,19/02/2024,12061160,13.85,For use on the pier,Misc Speciality Retail (5999)
Southend-on-Sea Borough Council,http://opendatacommunities.org/id/unitary-authority/southend,ED Environment & Place,Cultural And Related Services,4200,Amznmktplace,20/02/2024,12061160,16.99,Uniform for Landscape Team,Misc Speciality Retail (5999)
Southend-on-Sea Borough Council,http://opendatacommunities.org/id/unitary-authority/southend,ED Environment & Place,Cultural And Related Services,4200,Amznmktplace,20/02/2024,12061160,32.99,Batteries for Landscape Team,Misc Speciality Retail (5999)
Southend-on-Sea Borough Council,http://opendatacommunities.org/id/unitary-authority/southend,ED Adults & Communities,Cultural And Related Services,4280,Amazon* 202-7732024-81,19/02/2024,12061160,17.99,toilet rolls for use by staff and customers at Westcliff Library,Misc Gen Merchandise - Def (5399)
Southend-on-Sea Borough Council,http://opendatacommunities.org/id/unitary-authority/southend,ED Environment & Place,Cultural And Related Services,4200,Amznmktplace,20/02/2024,12061160,4.99,Tools for Park Warden,Misc Speciality Retail (5999)
Southend-on-Sea Borough Council,http://opendatacommunities.org/id/unitary-authority/southend,ED Environment & Place,Environmental And Regulatory Services,4535,Cctv User Group,20/02/2024,12061160,624,Attending National CCTV conference on behalf of SCC,Computer Program/Sys Design (7372)
Southend-on-Sea Borough Council,http://opendatacommunities.org/id/unitary-authority/southend,ED Children & Public Health,Children And Education Services,3030,Asda Superstore,20/02/2024,12061160,2.26,Resources for Family Centre Sessions,Grocery Stores/Supermarkets (5411)
Southend-on-Sea Borough Council,http://opendatacommunities.org/id/unitary-authority/southend,ED Children & Public Health,Children And Education Services,3030,Co-Op Group 180239,20/02/2024,12061160,2.35,snacks for antenatal classess,Grocery Stores/Supermarkets (5411)
Southend-on-Sea Borough Council,http://opendatacommunities.org/id/unitary-authority/southend,ED Children & Public Health,Children And Education Services,3030,Co-Op Group 180239,20/02/2024,12061160,7.96,snacks for antenatal classess,Grocery Stores/Supermarkets (5411)
Southend-on-Sea Borough Council,http://opendatacommunities.org/id/unitary-authority/southend,ED Children & Public Health,Children And Education Services,3290,Rectory Lane West,20/02/2024,12061160,7.5,Parking- Training and development- Chelmsford,"Parking Lots, Meters, Garages (7523)"
Southend-on-Sea Borough Council,http://opendatacommunities.org/id/unitary-authority/southend,ED Children & Public Health,Central Services to the Public,1035,Nottingham Venues Limited,20/02/2024,12061160,79.9,AS stay over in Nottingham to attend line management session with Tutors of AL who is doing his work *,Lodging/Hotels/Motels/Resorts (7011)
Southend-on-Sea Borough Council,http://opendatacommunities.org/id/unitary-authority/southend,ED Adults & Communities,Cultural And Related Services,4030,Neves Bees,20/02/2024,12061160,156,Products for sale in Priory shop - not VAT registered,Cosmetic Stores (5977)
Southend-on-Sea Borough Council,http://opendatacommunities.org/id/unitary-authority/southend,ED Strategy & Change,Central Services to the Public,7130,Amznmktplace,21/02/2024,12061160,52.15,USB-C charge cables x10 for stock. Requested by TC (Service Desk Manager).,Misc Speciality Retail (5999)
Southend-on-Sea Borough Council,http://opendatacommunities.org/id/unitary-authority/southend,ED Environment & Place,Cultural And Related Services,7515,Sjaak Van Der Vijver B,21/02/2024,12061160,72.72,Flowers for the floristry orders.,Florist Supplies/Nursery Stock (5193)
Southend-on-Sea Borough Council,http://opendatacommunities.org/id/unitary-authority/southend,ED Environment & Place,Cultural And Related Services,4200,Lidl Gb Southend,21/02/2024,12061160,17.47,Food and drink for volunteer group,Grocery Stores/Supermarkets (5411)
Southend-on-Sea Borough Council,http://opendatacommunities.org/id/unitary-authority/southend,ED Adults & Communities,Cultural And Related Services,4055,B&q Ltd,21/02/2024,12061160,20.7,Materials for REDACTED PERSONAL DATA Exhibition,Lumber/Build. Supply Stores (5211)
Southend-on-Sea Borough Council,http://opendatacommunities.org/id/unitary-authority/southend,ED Adults & Communities,Cultural And Related Services,4055,Sp Signtradesupplies,21/02/2024,12061160,94.69,Materials for REDACTED PERSONAL DATA Exhibition,Construction Materials - Def (5039)
Southend-on-Sea Borough Council,http://opendatacommunities.org/id/unitary-authority/southend,ED Finance & Resources,Central Services to the Public,7140,Sd Products,21/02/2024,12061160,65.88,replacement button for lifting desks,Misc Gen Merchandise - Def (5399)
Southend-on-Sea Borough Council,http://opendatacommunities.org/id/unitary-authority/southend,ED Children & Public Health,Children And Education Services,3396,McDonalds 1217,21/02/2024,12061160,2.99,drink purchased for new case to AIPT EH stepped down from Social care,Fast Food Restaurants (5814)
Southend-on-Sea Borough Council,http://opendatacommunities.org/id/unitary-authority/southend,ED Adults & Communities,Cultural And Related Services,4025,Dulux Decorator Centre,21/02/2024,12061160,64.21,Paint for the new roman exhibition at central museum.,Paint (5198)
Southend-on-Sea Borough Council,http://opendatacommunities.org/id/unitary-authority/southend,ED Children & Public Health,Children And Education Services,3030,Amazon* Centrpl015,21/02/2024,12061160,2.23,centre place fc first aid supplies,Misc Gen Merchandise - Def (5399)
Southend-on-Sea Borough Council,http://opendatacommunities.org/id/unitary-authority/southend,ED Children & Public Health,Children And Education Services,3030,Amazon* Centrpl015,21/02/2024,12061160,3.45,first aid supplies centre place,Misc Gen Merchandise - Def (5399)
Southend-on-Sea Borough Council,http://opendatacommunities.org/id/unitary-authority/southend,ED Children & Public Health,Children And Education Services,3030,Amazon* Centrpl015,21/02/2024,12061160,3.89,centre place fc first aid supplies for boxes,Misc Gen Merchandise - Def (5399)
Southend-on-Sea Borough Council,http://opendatacommunities.org/id/unitary-authority/southend,ED Children & Public Health,Children And Education Services,3030,Amazon* Centrpl015,21/02/2024,12061160,4.29,centre place fc first aid supplies,Misc Gen Merchandise - Def (5399)
Southend-on-Sea Borough Council,http://opendatacommunities.org/id/unitary-authority/southend,ED Children & Public Health,Children And Education Services,3030,Amazon* Centrpl015,21/02/2024,12061160,4.39,centre place fc first aid supplies,Misc Gen Merchandise - Def (5399)
Southend-on-Sea Borough Council,http://opendatacommunities.org/id/unitary-authority/southend,ED Children & Public Health,Children And Education Services,3030,Amazon* Centrpl015,21/02/2024,12061160,6.5,centre place fc first aid supplies,Misc Gen Merchandise - Def (5399)
Southend-on-Sea Borough Council,http://opendatacommunities.org/id/unitary-authority/southend,ED Children & Public Health,Children And Education Services,3030,Amazon* Centrpl015,21/02/2024,12061160,9,centre place first aid supplies,Misc Gen Merchandise - Def (5399)
Southend-on-Sea Borough Council,http://opendatacommunities.org/id/unitary-authority/southend,ED Children & Public Health,Children And Education Services,3030,Amazon* Centrpl015,21/02/2024,12061160,20.87,centre place first aid supplies inc thermometer,Misc Gen Merchandise - Def (5399)
Southend-on-Sea Borough Council,http://opendatacommunities.org/id/unitary-authority/southend,ED Adults & Communities,Adult Social Care,1231,Pressing Matters,21/02/2024,12061160,136,Laundry services for man known to adult social care. Money to be reclaimed once a court of protectio *,Dry Cleaners (7216)
Southend-on-Sea Borough Council,http://opendatacommunities.org/id/unitary-authority/southend,ED Environment & Place,Cultural And Related Services,7520,Leigh Lock And Safe Co Lt,21/02/2024,12061160,60,Keys for Schools maintenance team,Business Services - Default (7399)
Southend-on-Sea Borough Council,http://opendatacommunities.org/id/unitary-authority/southend,ED Children & Public Health,Children And Education Services,3491,Trainline,21/02/2024,12061160,85.99,Train ticket for Staff member to complete assessment,Passenger Railways (4112)
Southend-on-Sea Borough Council,http://opendatacommunities.org/id/unitary-authority/southend,ED Adults & Communities,Cultural And Related Services,4120,The Range,21/02/2024,12061160,39.98,For use on the pier,Misc Home Furnishing (5719)
Southend-on-Sea Borough Council,http://opendatacommunities.org/id/unitary-authority/southend,ED Adults & Communities,Cultural And Related Services,4055,Amazon* 205-7360191-92,21/02/2024,12061160,111.8,Parasol bases for REDACTED PERSONAL DATA exhibition,Misc Gen Merchandise - Def (5399)
Southend-on-Sea Borough Council,http://opendatacommunities.org/id/unitary-authority/southend,ED Children & Public Health,Children And Education Services,3030,Amazon* Centrpl015,21/02/2024,12061160,4.99,first aid supplies centre place for 3 x boxes,Misc Gen Merchandise - Def (5399)
Southend-on-Sea Borough Council,http://opendatacommunities.org/id/unitary-authority/southend,ED Adults & Communities,Cultural And Related Services,4225,Amznmktplace,22/02/2024,12061160,12.8,Supplies for Window Wanderland event for Pier front window display.,Misc Speciality Retail (5999)
Southend-on-Sea Borough Council,http://opendatacommunities.org/id/unitary-authority/southend,ED Strategy & Change,Central Services to the Public,2045,Formara Ltd,22/02/2024,12061160,73.2,Anti-littering posters print - Formara,Misc Publishing & Printing (2741)
Southend-on-Sea Borough Council,http://opendatacommunities.org/id/unitary-authority/southend,ED Adults & Communities,Cultural And Related Services,4256,Post Office Counter,22/02/2024,12061160,10,Book of postage stamps for Bookstart,Postage Stamps (9402)
Southend-on-Sea Borough Council,http://opendatacommunities.org/id/unitary-authority/southend,ED Children & Public Health,Children And Education Services,3436,Dvla Driver Online,22/02/2024,12061160,34,Provisional driving licence for YP.DW.No receipt as was completed online.,Govt Serv - Default (9399)
Southend-on-Sea Borough Council,http://opendatacommunities.org/id/unitary-authority/southend,ED Children & Public Health,Children And Education Services,3396,Starbucks Coffee,22/02/2024,12061160,14.35,Drinks purchased for two people open to early help - AIPTDiscussions took place,Fast Food Restaurants (5814)
Southend-on-Sea Borough Council,http://opendatacommunities.org/id/unitary-authority/southend,ED Adults & Communities,Adult Social Care,1350,Essex County Counci Ec,22/02/2024,12061160,11,Copy of birth certificate for an adult.,Govt Serv - Default (9399)
Southend-on-Sea Borough Council,http://opendatacommunities.org/id/unitary-authority/southend,ED Children & Public Health,Children And Education Services,3030,Amazon* East011,22/02/2024,12061160,5.65,cleaning supplies eastwood,Misc Gen Merchandise - Def (5399)
Southend-on-Sea Borough Council,http://opendatacommunities.org/id/unitary-authority/southend,ED Children & Public Health,Children And Education Services,3030,Amazon* East011,22/02/2024,12061160,6.6,cleaning cloths for eastwood fc,Misc Gen Merchandise - Def (5399)
Southend-on-Sea Borough Council,http://opendatacommunities.org/id/unitary-authority/southend,ED Children & Public Health,Children And Education Services,3030,Amazon* East011,22/02/2024,12061160,8.93,coffee x 2 for eastwood family centre,Misc Gen Merchandise - Def (5399)
Southend-on-Sea Borough Council,http://opendatacommunities.org/id/unitary-authority/southend,ED Children & Public Health,Children And Education Services,3030,Amznmktplace,22/02/2024,12061160,12.95,superglue to repair lights friars,Misc Speciality Retail (5999)
Southend-on-Sea Borough Council,http://opendatacommunities.org/id/unitary-authority/southend,ED Children & Public Health,Children And Education Services,3030,Amazon* East011,22/02/2024,12061160,35.99,eastwood wipes bulk buy,Misc Gen Merchandise - Def (5399)
Southend-on-Sea Borough Council,http://opendatacommunities.org/id/unitary-authority/southend,ED Children & Public Health,Children And Education Services,3030,Amazon* Crfc032,22/02/2024,12061160,62.97,printer cartridge emergency order cambridge road,Misc Gen Merchandise - Def (5399)
Southend-on-Sea Borough Council,http://opendatacommunities.org/id/unitary-authority/southend,ED Children & Public Health,Children And Education Services,3030,Amazon* Crfc032,22/02/2024,12061160,82.67,emergency printer cartridge order cambridge road,Misc Gen Merchandise - Def (5399)
Southend-on-Sea Borough Council,http://opendatacommunities.org/id/unitary-authority/southend,ED Children & Public Health,Children And Education Services,3491,Les And Garys The New Gen,22/02/2024,12061160,40,REDACTED PERSONAL DATA Shelving unit for family,Used Merchandise Stores (5931)
Southend-on-Sea Borough Council,http://opendatacommunities.org/id/unitary-authority/southend,ED Finance & Resources,Housing Services,6170,Tfl Travel Ch,22/02/2024,12061160,5.5,London underground journeys London Liverpool Street to St James Park and Westminster to London Liver *,Local Commuter Transport (4111)
Southend-on-Sea Borough Council,http://opendatacommunities.org/id/unitary-authority/southend,ED Adults & Communities,Cultural And Related Services,4120,Amazon* 204-8882301-13,22/02/2024,12061160,12.32,For use on the Pier,Misc Gen Merchandise - Def (5399)
Southend-on-Sea Borough Council,http://opendatacommunities.org/id/unitary-authority/southend,ED Children & Public Health,Children And Education Services,3030,Amazon* Centrpl015,21/02/2024,12061160,6.83,first aid supples centre place plasters,Misc Gen Merchandise - Def (5399)
Southend-on-Sea Borough Council,http://opendatacommunities.org/id/unitary-authority/southend,ED Adults & Communities,Cultural And Related Services,4015,Paypal,21/02/2024,12061160,305.4,Retail supplies for museum shop,Misc Home Furnishing (5719)
Southend-on-Sea Borough Council,http://opendatacommunities.org/id/unitary-authority/southend,ED Adults & Communities,Cultural And Related Services,4120,Amazon* 204-8620053-22,22/02/2024,12061160,27.43,For use on the Pier,Misc Gen Merchandise - Def (5399)
Southend-on-Sea Borough Council,http://opendatacommunities.org/id/unitary-authority/southend,ED Adults & Communities,Cultural And Related Services,4225,Amznmktplace,23/02/2024,12061160,5.99,"Parcel tape - for securing parcels, return of event radios hired for Remembrance Parade Nov 23",Misc Speciality Retail (5999)
Southend-on-Sea Borough Council,http://opendatacommunities.org/id/unitary-authority/southend,ED Adults & Communities,Cultural And Related Services,4225,Amznmktplace,23/02/2024,12061160,11.99,Window Wanderland equipment - Southend Pier,Misc Speciality Retail (5999)
Southend-on-Sea Borough Council,http://opendatacommunities.org/id/unitary-authority/southend,ED Adults & Communities,Cultural And Related Services,4225,Amznmktplace,23/02/2024,12061160,12.71,Equipment for pier window - Window Wanderland March 24 event.,Misc Speciality Retail (5999)
Southend-on-Sea Borough Council,http://opendatacommunities.org/id/unitary-authority/southend,ED Adults & Communities,Cultural And Related Services,4225,Amznmktplace,23/02/2024,12061160,25.98,Window Wanderland supplies - Southend Pier.,Misc Speciality Retail (5999)
Southend-on-Sea Borough Council,http://opendatacommunities.org/id/unitary-authority/southend,ED Environment & Place,Cultural And Related Services,4200,Amznmktplace,23/02/2024,12061160,5.48,Keys for Disabled Toilets in parks,Misc Speciality Retail (5999)
Southend-on-Sea Borough Council,http://opendatacommunities.org/id/unitary-authority/southend,ED Finance & Resources,Central Services to the Public,7096,Amznmktplace,23/02/2024,12061160,6.7,Refil for Postroom pens,Misc Speciality Retail (5999)
Southend-on-Sea Borough Council,http://opendatacommunities.org/id/unitary-authority/southend,ED Children & Public Health,Children And Education Services,3290,Driving Licence Web,23/02/2024,12061160,34,Purchased driving license for REDACTED PERSONAL DATA. This is part of the local offer and was agreed by team man *,Govt Serv - Default (9399)
Southend-on-Sea Borough Council,http://opendatacommunities.org/id/unitary-authority/southend,Department of the Chief Executive,Cultural And Related Services,7111,Thomson Reuters UK Ltd,23/02/2024,12061160,211.2,2 X JCT ON DEMAND MW2016 CONTRACTSONE FOR PRJ 1733-9ONE FOR PRJ 1828,Professional Services - Def (8999)
Southend-on-Sea Borough Council,http://opendatacommunities.org/id/unitary-authority/southend,ED Environment & Place,Cultural And Related Services,7515,Asda Superstore,23/02/2024,12061160,10,Flowers for floristry order.,Grocery Stores/Supermarkets (5411)
Southend-on-Sea Borough Council,http://opendatacommunities.org/id/unitary-authority/southend,Department of the Chief Executive,Cultural And Related Services,7111,Amazon* 204-5757994-87,23/02/2024,12061160,5.69,Locker numbers for estate opt project,Misc Gen Merchandise - Def (5399)
Southend-on-Sea Borough Council,http://opendatacommunities.org/id/unitary-authority/southend,ED Children & Public Health,Children And Education Services,3436,Basildon Parking,23/02/2024,12061160,6,parking for the day at Basildon Crown court,"Parking Lots, Meters, Garages (7523)"
Southend-on-Sea Borough Council,http://opendatacommunities.org/id/unitary-authority/southend,ED Children & Public Health,Children And Education Services,3436,Subway 42110 Basildon,23/02/2024,12061160,12.66,lunch for myself and social worker whilst at Basildon crown court for the day,Fast Food Restaurants (5814)
Southend-on-Sea Borough Council,http://opendatacommunities.org/id/unitary-authority/southend,ED Children & Public Health,Public Health,7713,Amznmktplace,23/02/2024,12061160,4.24,Stationary items to support delivery of healthy child programme,Misc Speciality Retail (5999)
Southend-on-Sea Borough Council,http://opendatacommunities.org/id/unitary-authority/southend,ED Environment & Place,Highways And Transport Services,5000,Emerald Ice,23/02/2024,12061160,60,E-book on Risk,Book Stores (5942)
Southend-on-Sea Borough Council,http://opendatacommunities.org/id/unitary-authority/southend,ED Adults & Communities,Cultural And Related Services,4030,Sq *och Vegan,23/02/2024,12061160,277.9,Retail products for museum shop,Misc Gen Merchandise - Def (5399)
Southend-on-Sea Borough Council,http://opendatacommunities.org/id/unitary-authority/southend,ED Finance & Resources,Central Services to the Public,2070,Mentimeter Pro,23/02/2024,12061160,300,Mentimeter's pro-package purchase for Chief Executive,Computer Software Stores (5734)
Southend-on-Sea Borough Council,http://opendatacommunities.org/id/unitary-authority/southend,ED Environment & Place,Cultural And Related Services,4200,Amznmktplace,25/02/2024,12061160,-32.99,Credit Voucher Amznmktplace,Misc Speciality Retail (5999)
Southend-on-Sea Borough Council,http://opendatacommunities.org/id/unitary-authority/southend,ED Children & Public Health,Public Health,7677,Amazon* 206-9687510-18,25/02/2024,12061160,13.99,Items to support delivery of Health4Life programme,Misc Gen Merchandise - Def (5399)
Southend-on-Sea Borough Council,http://opendatacommunities.org/id/unitary-authority/southend,ED Children & Public Health,Public Health,7677,Amznmktplace,25/02/2024,12061160,67.96,Items to support delivery of Health4Life programme,Misc Speciality Retail (5999)
Southend-on-Sea Borough Council,http://opendatacommunities.org/id/unitary-authority/southend,ED Environment & Place,Cultural And Related Services,4200,Brand Identity,26/02/2024,12061160,26.7,Uniform for Landscape Team,Misc Publishing & Printing (2741)
Southend-on-Sea Borough Council,http://opendatacommunities.org/id/unitary-authority/southend,ED Environment & Place,Cultural And Related Services,7510,Screwfix Dir Ltd,26/02/2024,12061160,19.99,Size 8 safety boots bought for member of staff.,Lumber/Build. Supply Stores (5211)
Southend-on-Sea Borough Council,http://opendatacommunities.org/id/unitary-authority/southend,ED Adults & Communities,Cultural And Related Services,4256,The Reading Agency,26/02/2024,12061160,138,Reading Well for Dementia promotional leaflets from the Reading Agency,Typesetting/Plate Making Etc (2791)
Southend-on-Sea Borough Council,http://opendatacommunities.org/id/unitary-authority/southend,ED Children & Public Health,Children And Education Services,3290,Greater Anglia T/o,26/02/2024,12061160,135,Purchased train ticket - stat visit to see - LCS ref: REDACTED PERSONAL DATA,Passenger Railways (4112)
Southend-on-Sea Borough Council,http://opendatacommunities.org/id/unitary-authority/southend,ED Finance & Resources,Central Services to the Public,7110,Amznmktplace,26/02/2024,12061160,27.99,Purchase of laptop Trolley for REDACTED PERSONAL DATA,Misc Speciality Retail (5999)
Southend-on-Sea Borough Council,http://opendatacommunities.org/id/unitary-authority/southend,ED Children & Public Health,Children And Education Services,3030,Asda Superstore,26/02/2024,12061160,10.51,Resources for Family Centre Sessions,Grocery Stores/Supermarkets (5411)
Southend-on-Sea Borough Council,http://opendatacommunities.org/id/unitary-authority/southend,ED Environment & Place,Environmental And Regulatory Services,4570,Amazon* 026-1366007-27,26/02/2024,12061160,8.94,Cable ties and postage for fixing AQ diffusion tubes,Misc Gen Merchandise - Def (5399)
Southend-on-Sea Borough Council,http://opendatacommunities.org/id/unitary-authority/southend,ED Children & Public Health,Children And Education Services,3030,Aldi Stores Ltd,26/02/2024,12061160,7.81,Snacks for family centres,Grocery Stores/Supermarkets (5411)
Southend-on-Sea Borough Council,http://opendatacommunities.org/id/unitary-authority/southend,ED Environment & Place,Central Services to the Public,7540,Tlm Environmental Limited,26/02/2024,12061160,30,Confidential office waste waste,Wrecking Salvage Yards (5935)
Southend-on-Sea Borough Council,http://opendatacommunities.org/id/unitary-authority/southend,ED Environment & Place,Housing Services,6011,Sainsburys,26/02/2024,12061160,10.7,REDACTED PERSONAL DATA move in basics,Grocery Stores/Supermarkets (5411)
Southend-on-Sea Borough Council,http://opendatacommunities.org/id/unitary-authority/southend,ED Adults & Communities,Adult Social Care,1231,Trainline,26/02/2024,12061160,30.29,Social Worker attending a discharge meeting in Mental health hospitalThe price charged is not refl *,Passenger Railways (4112)
Southend-on-Sea Borough Council,http://opendatacommunities.org/id/unitary-authority/southend,ED Children & Public Health,Children And Education Services,3030,Amazon* 204-8679200-84,26/02/2024,12061160,19.98,bottles for baby massage sessions in Family Centres,Misc Gen Merchandise - Def (5399)
Southend-on-Sea Borough Council,http://opendatacommunities.org/id/unitary-authority/southend,ED Environment & Place,Housing Services,6011,Greggs,26/02/2024,12061160,2.45,Food and drink for client being supported in B&B,Eating Places/Restaurants (5812)
Southend-on-Sea Borough Council,http://opendatacommunities.org/id/unitary-authority/southend,ED Children & Public Health,Children And Education Services,3310,Amznmktplace,27/02/2024,12061160,38.47,Additional Cables for the Virtual Reality Training Headsets to support the Trauma Training. Small su *,Misc Speciality Retail (5999)
Southend-on-Sea Borough Council,http://opendatacommunities.org/id/unitary-authority/southend,ED Finance & Resources,Central Services to the Public,7110,Www.Argos.Co.Uk,27/02/2024,12061160,50.95,Purchase of laptop bag/trolley for member of staff REDACTED PERSONAL DATA. Unfortunately the invoice from Argos *,Department Stores (5311)
Southend-on-Sea Borough Council,http://opendatacommunities.org/id/unitary-authority/southend,ED Children & Public Health,Children And Education Services,3030,Asda Superstore,27/02/2024,12061160,4.03,Resources for Family Centre Sessions,Grocery Stores/Supermarkets (5411)
Southend-on-Sea Borough Council,http://opendatacommunities.org/id/unitary-authority/southend,ED Environment & Place,Planning & Economy Services,5641,Www.Tablecloths.Co.Uk,27/02/2024,12061160,167.4,Marketing equipment - table clothes,Misc Home Furnishing (5719)
Southend-on-Sea Borough Council,http://opendatacommunities.org/id/unitary-authority/southend,ED Children & Public Health,Children And Education Services,3396,Tesco Stores 3177,27/02/2024,12061160,37.35,Clothing purchased for young person in hospital open to social care,Grocery Stores/Supermarkets (5411)
Southend-on-Sea Borough Council,http://opendatacommunities.org/id/unitary-authority/southend,ED Finance & Resources,Central Services to the Public,7110,Amznmktplace,27/02/2024,12061160,67.57,Noticeboard for CEX Office plus three sets of locker tags (three linked invoices in total),Misc Speciality Retail (5999)
Southend-on-Sea Borough Council,http://opendatacommunities.org/id/unitary-authority/southend,ED Environment & Place,Highways And Transport Services,5010,P Southend Central Sst,27/02/2024,12061160,28.9,Travel to roundtable event,Passenger Railways (4112)
Southend-on-Sea Borough Council,http://opendatacommunities.org/id/unitary-authority/southend,Department of the Chief Executive,Cultural And Related Services,7111,Sccssurvey.Co.Uk,27/02/2024,12061160,62.64,Eastwood School4No Standard Crack Monitor2No Epoxy fixing adhesive,Business Services - Default (7399)
Southend-on-Sea Borough Council,http://opendatacommunities.org/id/unitary-authority/southend,ED Environment & Place,Central Services to the Public,2041,P Southend Central To,27/02/2024,12061160,64.6,Train tickets for two individuals supported on the Resettlement scheme to attend accommodation viewi *,Passenger Railways (4112)
Southend-on-Sea Borough Council,http://opendatacommunities.org/id/unitary-authority/southend,ED Children & Public Health,Children And Education Services,3491,Www.Kidatu.Co.Uk,27/02/2024,12061160,21.17,Hire of room for court,Professional Services - Def (8999)
Southend-on-Sea Borough Council,http://opendatacommunities.org/id/unitary-authority/southend,ED Children & Public Health,Children And Education Services,3492,Homebase.Co.Uk,27/02/2024,12061160,42,Paint for a family,Home Supply Warehouse Stores (5200)
Southend-on-Sea Borough Council,http://opendatacommunities.org/id/unitary-authority/southend,ED Children & Public Health,Public Health,8700,Formara Ltd,27/02/2024,12061160,273.6,Printing for Public Health Protection,Misc Publishing & Printing (2741)
Southend-on-Sea Borough Council,http://opendatacommunities.org/id/unitary-authority/southend,ED Children & Public Health,Children And Education Services,3030,Wm Morrisons Store,27/02/2024,12061160,13.19,snack resources for family centres,Grocery Stores/Supermarkets (5411)
